Cogmind - Beta 16 X2 @@@ ROGUE MODE // 2025.10.13 @ 02:14:11 Player: Naughtyusername Result: Establishing 0b11! Performance ------------- Evolutions (9) 4500 Regions Visited (32) 6400 Robots Destroyed (424) 2120 Value Destroyed (20359) 20359 Prototype IDs (367) 7340 Alien Tech Used (2) 400 Bonus (40421) 40421 TOTAL SCORE: 81540 Bonus ------- High Alert Combat Kills 5422 Follower Combat Kills 2529 Network Hubs Disabled 400 Met Data Miner 300 Met Zhirov 300 Met Warlord at Base 500 MAIN.C Attacked Warlord 500 Warlord Defense Kills 1814 Built Enhanced Grunts 300 A7 Reached Mainframe 300 Met R17 at Cetus 500 Met R17 at Research 2000 Met Warlord at Research 2000 Invited to Help at Command 2000 Scanned by Researcher 500 Destroyed MAIN.C Guards 500 Met MAIN.C 5000 Destroyed MAIN.C Shell 5000 Destroyed MAIN.C 10000 Met Warlord at Command 2000 Win 3000 Friendly Fire -4444 Cogmind --------- Core Integrity 1394/1600 Matter 276/300 Energy 822/840 System Corruption 0% Temperature Cool (12) Movement Walking (115) Location 0b11 Command Parts ------- > --- POWER (3) -------- Zero-point Reactor Vortex Chain Reactor > --- PROPULSION (6) --- Centrium Leg Centrium Leg High-density Centrium Leg High-density Centrium Leg High-density Centrium Leg (fused) High-density Centrium Leg > --- UTILITY (12) ----- Experimental Cooling System Experimental Cooling System High-capacity Storage Unit Experimental Targeting Computer Experimental Target Analyzer Experimental Core Analyzer Experimental Core Analyzer Advanced Kinecellerator Experimental Weapon Cycler AEGIS Remote Shield Advanced Dynamic Insulation System Experimental System Purifier > --- WEAPON (4) ------- Null Cannon Graviton Cannon Graviton Cannon Graviton Cannon > --- INVENTORY (20) --- Quantum Reactor Reinforced Quantum Reactor Vortex Chain Reactor Biometal Leg Biometal Leg Centrium Leg High-density Centrium Leg High-density Centrium Leg Experimental Coolant Injector Experimental Energy Well (600) Experimental Energy Well (600) Experimental Energy Well (600) Experimental Matter Compressor (500) Experimental Transmission Jammer Thermal Barrier Experimental Hardlight Generator Advanced Force Field Vortex Driver (1) Micro-nuke Launcher Peak State ------------ > --- POWER ------------ Zero-point Reactor Vortex Chain Reactor > --- PROPULSION ------- Centrium Leg Centrium Leg High-density Centrium Leg High-density Centrium Leg High-density Centrium Leg High-density Centrium Leg > --- UTILITY ---------- Experimental Cooling System Experimental Cooling System Experimental Coolant Injector High-capacity Storage Unit Experimental Energy Well Experimental Targeting Computer Experimental Core Analyzer Experimental Core Analyzer Experimental Weapon Cycler AEGIS Remote Shield Advanced Dynamic Insulation System Experimental System Purifier > --- WEAPON ----------- Null Cannon Graviton Cannon Graviton Cannon Graviton Cannon > --- INVENTORY -------- Micro Antimatter Reactor Quantum Reactor Light Quantum Reactor Reinforced Quantum Reactor Vortex Chain Reactor Biometal Leg Biometal Leg Centrium Leg High-density Centrium Leg High-density Centrium Leg Experimental Coolant Injector Experimental Energy Well Experimental Energy Well Experimental Matter Compressor Thermal Barrier Experimental Hardlight Generator Advanced Force Field Vortex Driver Micro-nuke Launcher [Rating: 248] Favorites ----------- Power Improved Quantum Reactor Engine Ion Engine Power Core Enhanced Nuclear Core Reactor Improved Quantum Reactor Propulsion Titanium Leg Treads Light Treads Leg Titanium Leg Wheel Wheel Utility High-capacity Storage Unit Device Advanced Cooling System Storage High-capacity Storage Unit Processor Advanced Signal Interpreter Protection Layered Heavy Armor Plating Weapon Enhanced Nova Cannon Energy Gun Gatling Laser Energy Cannon Enhanced Nova Cannon Ballistic Gun Assault Rifle Ballistic Cannon Graviton Cannon Launcher Smartbomb Launcher Special Weapon RU-N14's Throwing Claymores v3 Build | -11 -10 -10 -10 -9 -8 -7 -7 -7 -7 -6 -6 -6 -6 -6 -6 -5 -5 -5 -5 -4 -4 -4 -4 -4 -3 -3 -3 -3 -2 -2 -1 -1 ------- Run | Yrd Mat Min Exi Min Mat Fac Low Low Dat Pro Fac Ext Cet Arc Hub Fac Upp Upp War Pro Fac Upp Upp Zhi Pro Res Arm Lab Res Tes Acc Com Slots Evolved 18 | . . . . . 4 2 . . . . 2 . . . . 2 . . . . 2 . . . . 2 . . 2 . 2 . Power 2 | . . . . . . . . . . . . . . . . 1 . . . . 1 . . . . . . . . . . . Propulsion 4 | . . . . . 1 2 . . . . . . . . . . . . . . 1 . . . . . . . . . . . Utility 10 | . . . . . 2 . . . . . 2 . . . . 1 . . . . . . . . . 2 . . 2 . 1 . Weapon 2 | . . . . . 1 . . . . . . . . . . . . . . . . . . . . . . . . . 1 . Parts Attached 308 | 7 9 3 . 4 36 11 2 2 . 2 5 18 9 . 4 40 1 5 17 4 8 4 . 4 1 18 11 . 10 25 7 41 Power 36 | 1 1 . . 1 2 1 . . . . . 2 1 . . 9 . 1 2 . 1 . . 1 . 1 1 . 2 3 . 6 Engine 4 | 1 1 . . 1 1 . . . . . . . . . . . . . . . . . . . . . . . . . . . Core 13 | . . . . . 1 1 . . . . . 2 . . . 7 . 1 . . . . . . . . . . . 1 . . Reactor 19 | . . . . . . . . . . . . . 1 . . 2 . . 2 . 1 . . 1 . 1 1 . 2 2 . 6 Propulsion 74 | 2 . . . 2 12 3 . . . . 2 5 1 . 2 10 1 2 2 . 2 . . . . 9 3 . 2 2 3 9 Treads 13 | 2 . . . 2 9 . . . . . . . . . . . . . . . . . . . . . . . . . . . Leg 60 | . . . . . 3 3 . . . . 2 5 1 . 2 10 . 2 2 . 2 . . . . 9 3 . 2 2 3 9 Wheel 1 | . . . . . . . . . . . . . . . . . 1 . . . . . . . . . . . . . . . Hover . | . . . . . . . . . . . . . . . . . . . . . . . . . . . . . . . . . Flight . | . . . . . . . . . . . . . . . . . . . . . . . . . . . . . . . . . Utility 109 | 2 4 3 . . 10 3 2 2 . . 3 6 4 . 2 10 . . 5 2 4 . . 3 1 6 1 . 6 10 1 19 Device 58 | 1 2 2 . . 4 . 1 . . . . 1 3 . . 5 . . 3 1 3 . . 2 1 3 1 . 4 8 1 12 Storage 14 | 1 2 1 . . 2 . . . . . 1 . . . . 1 . . 1 . . . . . . 2 . . . . . 3 Processor 13 | . . . . . 1 1 1 1 . . 1 1 . . 1 1 . . 1 1 . . . . . . . . . 1 . 2 Hackware . | . . . . . . . . . . . . . . . . . . . . . . . . . . . . . . . . . Protection 24 | . . . . . 3 2 . 1 . . 1 4 1 . 1 3 . . . . 1 . . 1 . 1 . . 2 1 . 2 Artifact . | . . . . . . . . . . . . . . . . . . . . . . . . . . . . . . . . . Weapon 89 | 2 4 . . 1 12 4 . . . 2 . 5 3 . . 11 . 2 8 2 1 4 . . . 2 6 . . 10 3 7 Energy Gun 31 | 2 1 . . 1 6 2 . . . . . 2 2 . . 3 . . 3 1 . 3 . . . 1 2 . . 2 . . Energy Cannon 31 | . . . . . 1 1 . . . . . . 1 . . 7 . 1 3 . . 1 . . . 1 4 . . 7 2 2 Ballistic Gun 5 | . 1 . . . 3 . . . . . . . . . . . . . . . . . . . . . . . . 1 . . Ballistic Cannon 5 | . . . . . . . . . . . . 1 . . . . . . . . . . . . . . . . . . . 4 Launcher 11 | . 1 . . . 2 1 . . . 2 . 1 . . . 1 . 1 . 1 . . . . . . . . . . 1 . Special Weapon 6 | . 1 . . . . . . . . . . 1 . . . . . . 2 . 1 . . . . . . . . . . 1 Impact Weapon . | . . . . . . . . . . . . . . . . . . . . . . . . . . . . . . . . . Slashing Weapon . | . . . . . . . . . . . . . . . . . . . . . . . . . . . . . . . . . Piercing Weapon . | . . . . . . . . . . . . . . . . . . . . . . . . . . . . . . . . . Special Melee Weapon . | . . . . . . . . . . . . . . . . . . . . . . . . . . . . . . . . . Unidentified Prototypes 56 | . . 2 . . 5 . . . . . . . 5 . . 4 . . 8 2 1 . . 4 . 4 2 . 3 10 . 6 Corrupted Parts 6 | . . . . . . . . . . . . . . . . 2 . 3 1 . . . . . . . . . . . . . System Corruption 27 | . . . . . . . . . . . . . . . . 14 . 10 3 . . . . . . . . . . . . . Parts Lost 60 | . 2 . . 3 9 . . . . . . 2 1 . 1 20 1 3 . . . . . . . . . . 1 3 . 14 Power 7 | . 1 . . . . . . . . . . . . . . 4 . 1 . . . . . . . . . . . . . 1 Propulsion 18 | . . . . 2 4 . . . . . . 1 . . . 6 1 2 . . . . . . . . . . 1 . . 1 Utility 21 | . . . . 1 2 . . . . . . 1 . . 1 4 . . . . . . . . . . . . . 3 . 9 Weapon 14 | . 1 . . . 3 . . . . . . . 1 . . 6 . . . . . . . . . . . . . . . 3 Highest Loss Streak 5 | . 2 . . 2 5 . . . . . . 1 1 . 1 5 1 2 . . . . . . . . . . 1 1 . 5 To Critical Strikes 1 | . . . . . 1 . . . . . . . . . . . . . . . . . . . . . . . . . . . Average Backups 18 | 1 12 15 17 18 23 19 20 19 20 20 19 19 18 19 18 18 14 17 18 19 18 18 18 18 19 18 18 18 18 19 19 18 Power 1 | . 2 1 1 1 2 1 1 1 1 1 1 1 1 1 1 1 1 1 . . . . . . . . 1 1 1 . . 1 Propulsion 2 | . . 1 1 2 5 3 4 4 4 4 4 4 2 3 2 2 . . . . . . . . . . . 1 1 1 1 1 Utility 8 | . 4 7 8 8 10 6 6 6 7 7 5 7 9 10 9 7 7 8 7 7 8 10 10 10 11 9 10 11 10 10 10 9 Weapon 5 | . 5 6 7 6 5 8 7 7 7 7 7 6 4 4 4 4 4 5 8 10 8 5 5 5 5 5 3 3 3 4 6 4 Tool/Special . | . . . . . . . . . . . . . . . . . . . . . . . . . . . . . . . . . Unused Backups 67 | . 1 3 . 1 17 4 . . . 1 . 3 . 1 . 6 . . 5 . 1 1 . 2 . 2 4 . . 2 . 13 Power 11 | . 1 1 . . 3 . . . . . . . . 1 . 1 . . . . . . . . . 2 . . . . . 2 Propulsion 6 | . . . . . 1 1 . . . . . . . . . 1 . . . . . . . . . . . . . 1 . 2 Utility 22 | . . 1 . . 6 1 . . . . . 1 . . . 3 . . 1 . . . . 1 . . . . . . . 8 Weapon 26 | . . 1 . 1 7 2 . . . 1 . 2 . . . 1 . . 4 . 1 1 . . . . 4 . . . . 1 Tool/Special 2 | . . . . . . . . . . . . . . . . . . . . . . . . 1 . . . . . 1 . . Average Slot Usage (%) 94 | . 97 99 72 99 99 99 99 100 79 100 99 98 100 100 99 99 80 88 87 93 87 89 89 74 89 92 94 90 89 87 93 93 Engine 2 | . 14 14 14 14 1 . . . . . . . . . . . . . . . . . . . . . . . . . . . Core 3 | . . . . . 7 7 7 7 7 7 6 6 3 . . 6 5 10 4 . . . . . . . . . . . . . Reactor 4 | . . . . . . . . . . . . . 2 6 6 3 . . 3 5 9 10 10 10 10 8 9 9 8 9 12 11 Treads 6 | . 28 28 28 27 26 . . . . . . . . . . . . . . . . . . . . . . . . . . . Leg 20 | . . . . . . 37 38 38 38 38 33 32 33 33 32 28 11 16 19 29 26 31 31 31 31 28 27 28 24 21 21 21 Device 14 | . 11 13 14 13 9 14 14 14 15 12 14 4 8 6 6 9 11 11 11 16 13 10 10 10 10 21 23 23 23 22 23 27 Storage 6 | . 14 14 14 14 9 7 7 7 7 7 6 6 6 6 6 5 5 5 5 5 5 5 5 5 5 4 4 4 5 4 4 5 Processor 10 | . . . . . 3 7 7 5 7 7 7 14 20 20 20 21 23 23 21 17 13 10 10 10 10 9 9 9 8 10 12 9 Protection 4 | . . . . . 13 . . 1 . 2 9 12 3 5 5 2 . . . . 2 5 5 4 5 4 3 . 4 4 4 2 Energy Gun 9 | . 17 12 . 13 23 23 22 23 2 20 19 15 17 13 12 4 . . 4 3 4 5 14 2 15 13 . . . . . . Energy Cannon 6 | . . . . . . . . . . . . . 2 6 6 11 17 8 7 8 9 9 . . . . 13 14 13 12 15 13 Ballistic Gun 1 | . 9 14 . 14 2 . . . . . . . . . . . . . . . . . . . . . . . . . . . Peak Build Rating 248 | 7 10 18 11 15 42 47 55 54 54 54 59 69 91 92 95 109 83 88 141 135 146 148 148 149 149 180 184 175 201 210 220 248 Average Rating 103 | 5 9 10 9 13 34 46 52 53 43 52 57 63 81 91 93 101 79 87 101 134 139 142 146 123 147 168 181 175 196 201 216 224 On Entrance 95 | . 7 10 11 9 15 38 46 55 54 48 54 58 66 89 92 95 83 79 81 132 135 143 145 147 146 148 180 175 175 200 200 220 Avg Prop Armor Cover (%) . | . . . . . . . 4 4 7 4 2 . . . . . 1 2 . . . . . . . . . . . . . . Naked Turns . | . . . . . . . . . . . . . . . . . . . . . . . . . . . . . . . . . Heaviest Build 203 | 13 31 50 50 53 109 69 69 70 67 73 72 76 82 88 88 110 82 89 126 126 145 170 124 142 124 147 165 158 181 178 187 203 Greatest Support 188 | 40 40 40 40 40 60 88 88 71 71 71 91 99 104 104 104 115 69 65 125 125 145 143 143 143 143 168 173 173 180 184 184 188 Greatest Overweight (x) 3 | . . 1 1 1 2 . . . . 1 . . . . . 1 1 3 1 1 1 1 . . . 1 1 . 1 1 1 1 Average Overweight (x) . | . . . 1 1 1 . . . . . . . . . . . 1 1 . . . . . . . . . . . . . . Largest Inventory Capacity 25 | 8 25 20 20 20 25 20 20 20 20 20 20 20 20 20 20 20 20 20 20 20 20 20 20 20 20 20 20 20 20 20 20 20 Average Capacity 20 | 7 14 19 20 20 24 20 20 20 20 20 20 20 20 20 20 20 20 20 20 20 20 20 20 20 20 20 20 20 20 20 20 20 Most Carried 25 | 4 15 16 18 20 25 20 20 20 20 20 20 20 20 20 20 20 17 20 20 20 20 20 20 20 20 20 20 20 20 20 20 20 Average Carried 19 | 1 12 15 17 18 23 19 19 19 20 19 19 19 19 20 19 19 16 18 19 19 19 19 20 19 20 19 19 20 19 19 19 18 Final Capacity 20 | 8 15 20 20 20 20 20 20 20 20 20 20 20 20 20 20 20 20 20 20 20 20 20 20 20 20 20 20 20 20 20 20 20 Final Carried 20 | 4 15 16 18 18 19 20 20 20 20 20 20 20 20 20 20 16 17 20 19 20 20 20 20 20 20 20 20 20 20 20 20 20 Class Distribution -------------------- 20% | Skirmisher 18% | Scavenger-Gunner 15% | Gunner 13% | Mutant 10% | Tank 5% | Scavenger-Skirmisher 4% | Commander-Gunner 3% | Scavenger-Tank 3% | Commander-Tank Dominant Class ---------------- Mutant | -10/Materials Mutant | -10/Mines Mutant | -10/Exiles Mutant | -9/Mines Gunner | -8/Materials Gunner | -7/Factory Gunner | -7/Lower Caves Skirmisher | -7/Lower Caves Mutant | -7/Data Miner Skirmisher | -6/Proximity Caves Skirmisher | -6/Factory Commander-Tank | -6/Extension Commander-Gunner | -6/Cetus Commander-Gunner | -6/Archives Scavenger-Gunner | -6/Hub_04(d) Scavenger-Skirmisher | -5/Factory Skirmisher | -5/Upper Caves Scavenger-Skirmisher | -5/Upper Caves Skirmisher | -5/Warlord Skirmisher | -4/Proximity Caves Skirmisher | -4/Factory Skirmisher | -4/Upper Caves Skirmisher | -4/Upper Caves Mutant | -4/Zhirov Skirmisher | -3/Proximity Caves Gunner | -3/Research Tank | -3/Armory Skirmisher | -3/Lab Tank | -2/Research Scavenger-Gunner | -2/Testing Scavenger-Gunner | -1/Access Scavenger-Gunner | -1/Command Resources | -11 -10 -10 -10 -9 -8 -7 -7 -7 -7 -6 -6 -6 -6 -6 -6 -5 -5 -5 -5 -4 -4 -4 -4 -4 -3 -3 -3 -3 -2 -2 -1 -1 ----------- Run | Yrd Mat Min Exi Min Mat Fac Low Low Dat Pro Fac Ext Cet Arc Hub Fac Upp Upp War Pro Fac Upp Upp Zhi Pro Res Arm Lab Res Tes Acc Com Matter Collected 10414 | 270 283 211 . 164 806 175 220 70 . 203 . 776 227 10 190 1296 57 128 226 110 237 288 100 . 97 551 101 . 307 875 405 2031 Remotely . | . . . . . . . . . . . . . . . . . . . . . . . . . . . . . . . . . Salvage Created 20825 | 153 423 107 . 204 2185 247 83 312 . 174 . 947 590 59 1147 3671 44 61 507 319 446 227 82 . . 1048 232 . 890 2821 1511 2335 Parts 870 | 10 34 6 . 5 110 12 . 6 . 2 . 36 24 2 53 144 3 6 16 7 10 6 1 . . 31 5 . 36 129 82 94 Haulers Intercepted 17 | . 2 . . . 5 . . . . . . . . . . 3 . . . . . . . . . 4 . . 2 1 . . Recyclers Shooed 7 | 1 . 1 . . 4 . . . . . . . . . . 1 . . . . . . . . . . . . . . . . Parts Field Recycled . | . . . . . . . . . . . . . . . . . . . . . . . . . . . . . . . . . Retrieved Matter . | . . . . . . . . . . . . . . . . . . . . . . . . . . . . . . . . . Parts Self-Destructed 17 | . . . . . . . . 5 . 2 . . . . . . . 2 . 4 . 3 1 . . . . . . . . . Prevented 3 | . . . . . . . . . . . . . . . . . . 3 . . . . . . . . . . . . . . Parts Restored . | . . . . . . . . . . . . . . . . . . . . . . . . . . . . . . . . . Kills | -11 -10 -10 -10 -9 -8 -7 -7 -7 -7 -6 -6 -6 -6 -6 -6 -5 -5 -5 -5 -4 -4 -4 -4 -4 -3 -3 -3 -3 -2 -2 -1 -1 ------- Run | Yrd Mat Min Exi Min Mat Fac Low Low Dat Pro Fac Ext Cet Arc Hub Fac Upp Upp War Pro Fac Upp Upp Zhi Pro Res Arm Lab Res Tes Acc Com Combat Hostiles Destroyed 320 | . 12 2 . 7 48 7 . 2 . 4 . 13 1 1 18 62 . 5 17 2 10 1 2 . . 8 2 . 8 31 23 34 Guns 107 | . 10 . . 7 36 4 . 2 . 2 . 7 1 . 7 12 . . 12 . . . 1 . . 6 . . . . . . Cannons 119 | . . . . . . . . . . . . . . . 5 30 . 1 . 1 1 . . . . . 2 . 8 28 11 32 AOE 70 | . 2 2 . . 9 3 . . . 2 . 1 . . 6 14 . 4 5 1 7 . 1 . . 2 . . . . 11 . Classes Destroyed 27 | 2 4 . . 2 8 . . . . . . 1 . . 2 1 1 . 2 . . . . . . . . . 1 2 . 1 Worker 15 | . 1 . . . 3 2 . . . . . . . . . 3 . . . . . . . . . 3 . . . . 2 1 Builder 18 | . . . . . 1 . . . . . . 1 . . 1 4 . . . . 1 . . . . 2 . . . 6 2 . Tunneler 6 | 3 . . . . . . . . . . . . . . . 2 . . . . 1 . . . . . . . . . . . Hauler 17 | . 2 . . . 5 . . . . . . . . . . 3 . . . . . . . . . 4 . . 2 1 . . Recycler 11 | 1 . 1 . . 1 . . . . . . 1 . . 1 3 . . . . . . . . . . . . 1 . 1 1 Operator 4 | . . . . . 1 . . . . . . 1 . . 1 1 . . . . . . . . . . . . . . . . Drone 1 | . . . . . . . . . . . . . . . . . . . . . . . . . . . . . . 1 . . Watcher 15 | . . . . . 3 . . . . . . 1 . . 3 3 . . . . 1 . . . . . 1 . 1 . . 2 Swarmer 66 | . 6 . . 1 7 6 . . . . . 3 . . 4 22 . 4 2 . . . . . . . . . 3 . 6 2 Cutter 1 | . . . . . . . . . . . . . . . . 1 . . . . . . . . . . . . . . . . Saboteur 2 | . . . . . . . . . . . . . . . . . . . 2 . . . . . . . . . . . . . Grunt 93 | . 6 2 . 3 24 . . 2 . 3 . 4 . . 5 16 . . 5 . 4 . . . . 4 . . . 8 5 2 Brawler 5 | . . . . . 2 . . . . . . . . . . . . . 2 . . . . . . . . . . . 1 . Duelist 10 | . . . . . 2 . . . . 1 . . . . 2 4 . . 1 . . . . . . . . . . . . . Protector 7 | . . . . 1 1 . . . . . . . . . . 1 . . 3 . . . . . . . . . . . . 1 Researcher 5 | . . . . . . . . . . . . . . . . . . . . . . . . . . . . . . 5 . . Sentry 36 | . . . . . 9 1 . . . . . 5 . 1 4 4 . . . . 2 . . . . 1 2 . . 2 1 4 Demolisher 2 | . . . . 2 . . . . . . . . . . . . . . . . . . . . . . . . . . . . Specialist 4 | . . . . . 2 . . . . . . . . . 1 . . . . . . . . . . . . . . . . 1 Hunter 40 | . . . . . . . . . . . . . . . 1 5 . 1 1 2 4 . 2 . . 2 . . 1 8 4 9 Programmer 37 | . . . . . . . . . . . . . . . 1 9 . . . . . . . . . . . . 2 13 6 6 Heavy 3 | . . . . . 1 . . . . . . . . . . . . . . . . . . . . . . . . . . 2 Behemoth 4 | . . . . . . . . . . . . 1 . . . . . . . . . 1 . . . . . . . . . 2 Cetus Guard 1 | . . . . . . . . . . . . . 1 . . . . . . . . . . . . . . . . . . . Enhanced Grunt 1 | . . . . . . . . . . . . . . . 1 . . . . . . . . . . . . . . . . . Combat Programmer 2 | . . . . . . . . . . . . . . . . . . . . . . . . . . . . . . . . 2 Striker 2 | . . . . . . . . . . . . . . . . . . . . . . . . . . . . . 2 . . . Executioner 2 | . . . . . . . . . . . . . . . . . . . 1 . . . . . . 1 . . . . . . Decomposer 3 | . . . . . . . 1 . . . . . . . . . . . . . . 2 . . . . . . . . . . Packrat 1 | . . . . . . . 1 . . . . . . . . . . . . . . . . . . . . . . . . . Samaritan 3 | . . . . . . . . . . . . . . . . . 1 . . . . 2 . . . . . . . . . . Thug 4 | . . . . . . . . . . . . 1 3 . . . . . . . . . . . . . . . . . . . Savage 3 | . . . . . . . . . . . . . 3 . . . . . . . . . . . . . . . . . . . Butcher 4 | . . . . . . . . . . . . . 3 . . . . . . . . . . . . . . . 1 . . . Marauder 1 | . . . . . . . . . . . . . . . . . . . . . . . . . . . . . . . . 1 Mutant 1 | . . . . . . . . . . . . . . . . . . . . . . . . . . . . . . . . 1 Best Kill Streak 11 | 4 7 2 . 2 10 3 . 2 . 4 . 3 1 1 8 11 . 4 10 2 5 1 2 . . 6 2 . 5 8 7 6 Combat Bots Only 10 | . 5 2 . 2 8 3 . 2 . 4 . 3 1 1 8 7 . 4 10 2 4 1 2 . . 3 1 . 5 6 6 6 Max Kills in Single Turn 5 | 1 1 2 . 1 4 3 1 1 . 1 . 2 5 1 3 2 1 4 4 1 1 1 1 . . 3 1 . 2 2 4 2 Gunslinging 2 | . . . . . 2 . . . . . . 1 . . . 1 . . 1 . . . . . . . . . . . . . Exploded 4 | . 1 2 . . 3 3 . . . 1 . 1 . . 3 2 . 4 2 1 1 . 1 . . 2 . . . . 4 . Melee . | . . . . . . . . . . . . . . . . . . . . . . . . . . . . . . . . . Uniques/NPCs Destroyed 2 | . . . . . . . . . . . . . 1 . . . . . . . . . . . . . . . . . . 1 A7 (-6/Cetus) MAIN.C (-1/Command) Combat | -11 -10 -10 -10 -9 -8 -7 -7 -7 -7 -6 -6 -6 -6 -6 -6 -5 -5 -5 -5 -4 -4 -4 -4 -4 -3 -3 -3 -3 -2 -2 -1 -1 -------- Run | Yrd Mat Min Exi Min Mat Fac Low Low Dat Pro Fac Ext Cet Arc Hub Fac Upp Upp War Pro Fac Upp Upp Zhi Pro Res Arm Lab Res Tes Acc Com Hostile Shots Fired 1862 | . 50 1 . 19 152 14 . 22 . 11 26 168 21 5 97 379 . 21 . 12 54 13 16 . . 46 16 . 98 244 98 279 Missed 576 | . 9 . . 3 28 3 . 6 . 4 11 68 5 2 41 99 . 2 . 4 18 5 8 . . 10 8 . 40 86 34 82 Intercepted 6 | . . . . . . . . . . . . . . . . . . . . . . . . . . . . . . . . 6 Deflected 1 | . . . . . . . . . . . . . . . . . . . . . . . . . . . . . . . . 1 Hits 1286 | . 41 1 . 16 124 11 . 16 . 7 15 100 16 3 56 280 . 19 . 8 36 8 8 . . 36 8 . 58 158 64 197 Melee 45 | . . . . 4 7 . . 2 . 3 . . . . . 22 . . . . . . . . . 4 . . 2 . 1 . Projectile 1241 | . 41 1 . 12 117 11 . 14 . 4 15 100 16 3 56 258 . 19 . 8 36 8 8 . . 32 8 . 56 158 63 197 AOE 26 | . . . . 3 . . . . . . . . . . . 1 . . . . . . . . . . . . 4 . . 18 Critical Strikes 56 | . 1 . . 1 6 . . 1 . 1 1 1 . . 3 5 . 1 . 1 4 . . . . 3 . . 2 15 5 5 Actively Blocked 4 | . . . . . . . . . . . . . . . . . . . . . . . . . . . . . . 1 . 3 Part Disruptions 14 | . . . . . . . . . . . . . . . . 1 1 . . . . . . . . . . . . 4 . 8 Actively Blocked 6 | . . . . . . . . . . . . . . . . . . . . . . . . . . . . . . 3 . 3 Damage Taken 23571 | . 485 14 . 344 2354 186 . 287 . 267 93 801 573 152 1038 6158 39 323 . 79 453 151 59 . . 482 100 . 1431 2232 641 4829 Core 2028 | . 71 . . 13 178 29 . 70 . 77 . 52 50 67 137 817 14 . . 13 50 . 5 . . 116 . . . 63 . 206 Absorbed by Shields 5923 | . . . . . . . . . . . . 72 40 . . . . . . 75 292 45 53 . . 374 97 . 254 1393 670 2558 Redirected to Shielding 37 | . . . . . 37 . . . . . . . . . . . . . . . . . . . . . . . . . . . Ignored by Resistances 231 | . . . . . . . . . . . . . . . . 43 . . . . . . . . . . 18 . . 14 . 156 Regen/Repaired (Parts) 830 | . . . . . 11 . . . . . . . . . . 321 . . 107 . . . . . . . . . . . 92 299 Core Remaining (%) 74 | 100 . . . 66 67 . . . . 74 . . . . 64 . . . . 15 . . . . 95 . . 85 . 95 . 87 Volleys Fired 1043 | 8 46 1 . 18 87 7 5 10 . 5 3 116 37 5 45 183 8 8 20 6 21 16 4 . 2 36 21 . 26 120 56 123 Largest 4 | 2 2 1 . 2 3 3 3 3 . 3 3 3 3 3 3 3 2 3 3 3 3 3 3 . 3 3 3 . 3 3 4 4 Hottest 490 | 80 100 30 . 76 240 240 240 240 . 240 240 240 251 251 251 260 111 209 135 208 208 290 282 . 282 282 360 . 360 370 490 490 Shots Fired 2395 | 16 79 1 . 36 228 17 13 29 . 9 5 177 87 12 116 382 12 13 60 11 39 48 8 . 6 98 41 . 75 262 117 398 Gun 935 | 16 68 . . 36 216 15 12 29 . 7 3 105 61 8 71 97 . . 60 1 9 14 6 . 6 95 . . . . . . Cannon 1314 | . . . . . . . . . . . . 8 26 4 37 271 12 11 . 6 19 34 . . . . 41 . 75 262 112 396 Launcher 68 | . 5 1 . . 12 2 1 . . 2 2 3 . . 8 14 . 2 . 2 4 . 2 . . 3 . . . . 5 . Special 78 | . 6 . . . . . . . . . . 61 . . . . . . . 2 7 . . . . . . . . . . 2 Kinetic 124 | . 19 . . 18 30 . . . . . . 8 . . . . . . . . . . . . . . . . . . . 49 Thermal 1882 | 16 55 . . 18 186 15 12 29 . 7 3 44 87 12 108 327 9 9 . 7 28 44 6 . 6 95 41 . 75 257 98 288 Explosive 60 | . 5 1 . . 12 2 1 . . 2 2 . . . 2 6 . 2 . 4 11 . 2 . . 3 . . . . 5 . Electromagnetic 169 | . . . . . . . . . . . . 64 . . 6 49 3 2 . . . . . . . . . . . 5 14 26 Entropic 97 | . . . . . . . . . . . . . . . . . . . 60 . . 4 . . . . . . . . . 33 Robot Hit Streak 37 | 3 8 . . 13 27 11 7 15 . 22 4 37 17 9 10 8 2 3 8 5 9 7 3 . . 9 6 . 10 14 10 24 Robot Miss Streak 5 | 2 4 . . 2 3 4 2 2 . 2 4 4 2 1 5 5 1 2 4 1 3 3 2 . . 3 2 . 4 3 2 5 Penetration Max 3 | . . . . . . . . . . . . . . . . . . . 3 . . . . . . . . . . . . . Secondary Targets 19 | . 1 . . 1 7 . . 1 . 1 . 3 1 . . 1 . . 3 . . . . . . . . . . . . . Max Gunslinging Chain 2 | . 1 . . 1 2 . . 1 . 1 . 1 1 . . 1 . . 1 . . . . . . . . . . . . . Shots Hit Robots 1378 | 8 46 . . 26 174 9 9 26 . 7 2 135 55 11 58 181 3 4 33 6 24 11 2 . . 61 14 . 34 128 38 273 Core Hits 878 | 5 23 3 . 13 146 16 6 17 . 11 2 63 42 2 49 123 1 8 46 5 23 6 5 . . 41 6 . 17 64 38 97 Critical Kills 12 | . . . . . . . . . . . . . . . . 2 . . . . 1 1 . . . . . . . 4 2 2 Critical Parts Destroyed 8 | . . . . . . . . . . . . 1 . . . . . . 7 . . . . . . . . . . . . . Critical Strikes 42 | . . . . 1 1 . . . . . . 1 1 1 5 7 . . 7 1 4 1 . . . 3 . . . 4 2 3 Burn 16 | . . . . 1 1 . . . . . . . 1 1 5 4 . . . . . . . . . 3 . . . . . . Meltdown 12 | . . . . . . . . . . . . . . . . 2 . . . . 1 1 . . . . . . . 4 2 2 Destroy 1 | . . . . . . . . . . . . 1 . . . . . . . . . . . . . . . . . . . . Corrupt 2 | . . . . . . . . . . . . . . . . 1 . . . . . . . . . . . . . . . 1 Sever 4 | . . . . . . . . . . . . . . . . . . . . 1 3 . . . . . . . . . . . Detonate 7 | . . . . . . . . . . . . . . . . . . . 7 . . . . . . . . . . . . . Melee Attacks . | . . . . . . . . . . . . . . . . . . . . . . . . . . . . . . . . . Impact . | . . . . . . . . . . . . . . . . . . . . . . . . . . . . . . . . . Slashing . | . . . . . . . . . . . . . . . . . . . . . . . . . . . . . . . . . Piercing . | . . . . . . . . . . . . . . . . . . . . . . . . . . . . . . . . . Sneak Attacks . | . . . . . . . . . . . . . . . . . . . . . . . . . . . . . . . . . Combat Hostiles . | . . . . . . . . . . . . . . . . . . . . . . . . . . . . . . . . . Follow-up Attacks . | . . . . . . . . . . . . . . . . . . . . . . . . . . . . . . . . . Damage Inflicted 63108 | 84 878 155 . 374 5139 411 162 644 . 558 64 2239 2418 317 3115 8118 108 643 4157 386 2444 362 218 . . 3271 625 . 1876 6567 3421 14354 Guns 16799 | 84 507 . . 354 3752 220 162 644 . 176 43 1688 1330 201 1263 1329 . . 2121 27 176 115 28 . . 2579 . . . . . . Cannons 31479 | . . . . . . . . . . . . 20 516 116 763 4017 108 97 . 86 319 247 . . . . 625 . 1876 6493 1902 14294 Explosions 13521 | . 352 122 . . 1233 191 . . . 382 . 531 572 . 903 2610 . 546 2036 162 1693 . 190 . . 557 . . . . 1441 . Melee . | . . . . . . . . . . . . . . . . . . . . . . . . . . . . . . . . . Ramming 942 | . 19 33 . 20 154 . . . . . 21 . . . 186 162 . . . . . . . . . 135 . . . 74 78 60 Kinetic 1528 | . 140 . . 157 307 . . . . . . 20 . . . . . . . . . . . . . . . . . . . 904 Thermal 43365 | 84 367 57 . 197 3445 220 162 644 . 176 43 1274 2418 317 2264 5006 . 26 2036 113 495 289 28 . . 2579 625 . 1876 6358 1679 10587 Explosive 8522 | . 352 65 . . 1233 191 . . . 382 . . . . 236 1474 . 546 . 162 1693 . 190 . . 557 . . . . 1441 . Electromagnetic 4170 | . . . . . . . . . . . . 945 . . 429 1476 108 71 . . . . . . . . . . . 135 223 783 Impact . | . . . . . . . . . . . . . . . . . . . . . . . . . . . . . . . . . Slashing 367 | . . . . . . . . . . . . . . . . . . . . 111 256 . . . . . . . . . . . Piercing . | . . . . . . . . . . . . . . . . . . . . . . . . . . . . . . . . . Entropic 4214 | . . . . . . . . . . . . . . . . . . . 2121 . . 73 . . . . . . . . . 2020 Highest Corruption 34 | . 1 1 1 1 6 1 1 1 1 1 . 2 2 2 3 24 24 34 34 . 1 1 1 1 1 . . . 4 14 3 10 Average Corruption 4 | . 1 1 1 1 2 1 1 1 1 1 . 2 2 2 2 5 24 33 29 . 1 1 1 1 1 . . . 4 10 2 5 Corruption Purged 10 | . . . . . . . . . . . . . . . . . . . . . . . . . . . . . . . . 10 Corruption Blocked . | . . . . . . . . . . . . . . . . . . . . . . . . . . . . . . . . . Effects 418 | . 8 12 5 9 41 2 8 4 . 5 . 19 7 1 17 50 38 22 4 . 1 5 1 . 4 . . . 11 67 12 65 Message Errors 98 | . 3 4 1 1 4 . 4 3 . 2 . 5 3 1 2 10 9 9 1 . . 1 . . 1 . . . 3 11 5 15 Matter Fused 99 | . 2 1 1 2 12 1 2 . . 1 . 4 2 . 5 7 10 3 1 . 1 3 . . 2 . . . 3 17 3 16 Heat Flow Errors 54 | . 1 1 1 4 1 1 . . . . . 1 2 . 1 12 2 3 . . . . 1 . 1 . . . 2 10 . 10 Energy Discharges 37 | . . 3 2 . 6 . . . . 1 . 1 . . 1 6 3 3 . . . . . . . . . . . 6 . 5 Parts Rejected 4 | . . . . . . . . . . . . 1 . . 1 2 . . . . . . . . . . . . . . . . Parts Fused 5 | . . . . . 1 . . . . . . . . . 1 . . . . . . . . . . . . . . 2 . 1 Data Loss (minor) 49 | . 1 2 . 1 8 . . . . 1 . 2 . . 1 4 9 2 1 . . 1 . . . . . . . 8 4 4 Data Loss (major) 19 | . . 1 . 1 3 . 1 . . . . 3 . . . 2 2 1 . . . . . . . . . . . 2 . 3 Misfires 18 | . 1 . . . 1 . 1 1 . . . 2 . . 2 1 1 1 . . . . . . . . . . 1 4 . 2 Alerts 10 | . . . . . . . . . . . . . . . 1 3 2 . 1 . . . . . . . . . 2 1 . . Misdirections 1 | . . . . . . . . . . . . . . . . 1 . . . . . . . . . . . . . . . . Weapon Failures 24 | . . . . . 5 . . . . . . . . . 2 2 . . . . . . . . . . . . . 6 . 9 Overload Shots 1 | . . . . . . . . . . . . . 1 . . . . . . . . . . . . . . . . . . . Overflow Damage 1558 | . 5 7 . . 26 . . . . 16 . . 13 . 11 259 37 . 63 4 100 34 . . . 47 . . 41 374 277 244 Projectiles 921 | . . . . . . . . . . . . . 13 . . 84 37 . . . 5 34 . . . . . . 41 369 94 244 Explosions 563 | . 5 7 . . 26 . . . . 16 . . . . . 139 . . 63 4 95 . . . . 25 . . . . 183 . Melee 74 | . . . . . . . . . . . . . . . 11 36 . . . . . . . . . 22 . . . 5 . . Knockbacks 13 | . . . . 1 3 . . . . . 1 1 . . 1 . . . . . . . . . . 2 . . . . . 4 Impact 9 | . . . . 1 3 . . . . . 1 . . . 1 . . . . . . . . . . 2 . . . . . 1 Kinetic 4 | . . . . . . . . . . . . 1 . . . . . . . . . . . . . . . . . . . 3 Secondary . | . . . . . . . . . . . . . . . . . . . . . . . . . . . . . . . . . Self-Inflicted Damage 1004 | . 61 . . . 327 29 . . . 74 . . 94 . 73 314 . . . . . . . . . 32 . . . . . . Shots 26 | . 3 . . . 8 1 . . . 2 . . 1 . 2 8 . . . . . . . . . 1 . . . . . . Rammed 31 | . 5 3 . 4 19 . . . . . . . . . . . . . . . . . . . . . . . . . . . Targets Rammed 64 | . 5 4 . 4 20 . . . . . 1 . . . 7 9 . . . . . . . . . 6 . . . 3 3 2 Kicked 32 | . . . . . 1 . . . . . 1 . . . 7 9 . . . . . . . . . 6 . . . 3 3 2 Crushed 1 | . . 1 . . . . . . . . . . . . . . . . . . . . . . . . . . . . . . Highest Temperature 505 | 144 267 141 186 249 505 385 324 325 . 224 168 417 343 162 252 409 225 196 . 9 269 244 138 . 223 300 166 . 420 384 370 482 Average Temperature 111 | 73 51 75 98 77 145 179 122 133 . 125 97 106 99 59 78 106 106 63 . 6 101 66 72 . 102 110 53 . 90 108 144 128 Received Heat Transfer 2787 | . 168 9 . 69 909 . . 126 . 54 . 234 67 9 246 525 . . . . 109 13 . . . 56 16 . . 33 48 96 Effects 35 | . . . . . 11 1 1 2 . 1 . 7 . . . 2 . . . . 3 . . . . . . . 1 2 1 3 Shutdowns 9 | . . . . . 3 . . . . . . 1 . . . 2 . . . . . . . . . . . . 1 1 . 1 Energy Bleed 5 | . . . . . . 1 . 1 . 1 . . . . . . . . . . . . . . . . . . . 1 1 . Interference 13 | . . . . . 4 . . . . . . 5 . . . . . . . . 3 . . . . . . . . . . 1 Matter Decay 1 | . . . . . 1 . . . . . . . . . . . . . . . . . . . . . . . . . . . Short Circuit 3 | . . . . . 1 . . 1 . . . 1 . . . . . . . . . . . . . . . . . . . . Damage (minor) 2 | . . . . . . . 1 . . . . . . . . . . . . . . . . . . . . . . . . 1 Damage (major) 2 | . . . . . 2 . . . . . . . . . . . . . . . . . . . . . . . . . . . Siege Activations . | . . . . . . . . . . . . . . . . . . . . . . . . . . . . . . . . . Martial Activations . | . . . . . . . . . . . . . . . . . . . . . . . . . . . . . . . . . Shielding Activations 2 | . . . . . . . . . . . . . . . . . . . . . . . . . . . . . . . . 2 Total Turns 26 | . . . . . . . . . . . . . . . . . . . . . . . . . . . . . . . . 26 Longest Duration 20 | . . . . . . . . . . . . . . . . . . . . . . . . . . . . . . . . 20 Robots Disrupted 2 | . . . . . . . . . . . . 1 . . 1 . . . . . . . . . . . . . . . . . Combat Hostiles 2 | . . . . . . . . . . . . 1 . . 1 . . . . . . . . . . . . . . . . . Robots Corrupted 9 | . . . . . . . . . . . . 2 . . 1 3 . . . . . . . . . 1 . . . 1 . 1 Combat Hostiles 5 | . . . . . . . . . . . . 2 . . . 2 . . . . . . . . . . . . . . . 1 Parts Fried 21 | . . . . . . . . . . . . 1 . . 3 5 2 1 . . . . . . . . . . 1 2 1 5 Impact Corruptions 10 | . . . . . . . . . . . . . . . 3 3 . . . . . . . . . 3 . . . 1 . . Robots Melted 23 | . . . . . 3 . . . . . . 3 . 1 . 4 . . . . 2 1 . . . 1 . . . 4 2 2 Combat Hostiles 19 | . . . . . 3 . . . . . . 3 . 1 . 4 . . . . 2 1 . . . . . . . 3 1 1 Parts Melted 111 | 1 1 . . 2 17 1 . 2 . . . 8 1 . 6 28 . . . 1 6 1 . . . 4 1 . 3 13 6 9 Heat Transferred 47027 | 200 885 50 . 568 8006 500 375 1475 . 400 100 2693 2213 370 2273 7301 . 37 1409 161 681 396 37 . . 2779 518 . 1554 5001 1284 5761 Parts Sabotaged 1 | . . . . . . . . . . . . . . . . . . . . . . . . . . . . . . . 1 . Parts Stolen . | . . . . . . . . . . . . . . . . . . . . . . . . . . . . . . . . . Parts Stripped . | . . . . . . . . . . . . . . . . . . . . . . . . . . . . . . . . . Power Chain Reactions 10 | . . . . . . . . . . . . 2 1 . 4 3 . . . . . . . . . . . . . . . . Alert | -11 -10 -10 -10 -9 -8 -7 -7 -7 -7 -6 -6 -6 -6 -6 -6 -5 -5 -5 -5 -4 -4 -4 -4 -4 -3 -3 -3 -3 -2 -2 -1 -1 ------- Run | Yrd Mat Min Exi Min Mat Fac Low Low Dat Pro Fac Ext Cet Arc Hub Fac Upp Upp War Pro Fac Upp Upp Zhi Pro Res Arm Lab Res Tes Acc Com Maximum Alert Level 5 | . . . . . 3 1 . . . . . 2 1 1 4 5 . . . . 3 . . . . 1 . . 1 3 4 3 Low Security (%) 40 | 100 100 100 . 100 58 19 . . . . 100 38 32 79 9 . . . . . . . . . . 79 100 . 74 19 . . Level 1 13 | . . . . . 13 80 . . . . . 34 67 20 9 . . . . . 27 . . . . 20 . . 25 23 . . Level 2 17 | . . . . . 16 . . . . . . 27 . . 3 24 . . . . 53 . . . . . . . . 42 53 23 Level 3 18 | . . . . . 10 . . . . . . . . . 26 24 . . . . 19 . . . . . . . . 13 36 76 Level 4 6 | . . . . . . . . . . . . . . . 50 28 . . . . . . . . . . . . . . 9 . Level 5 2 | . . . . . . . . . . . . . . . . 22 . . . . . . . . . . . . . . . . High Security . | . . . . . . . . . . . . . . . . . . . . . . . . . . . . . . . . . Max Security . | . . . . . . . . . . . . . . . . . . . . . . . . . . . . . . . . . Peak Influence 2437 | 15 199 103 . 88 822 366 . . . . 24 625 392 211 1422 2437 . . . . 768 . . . . 352 175 . 271 979 1188 858 Initial 757 | . . . . . . 366 . . . . . 6 322 52 56 646 . . . . 450 . . . . . 175 . . 107 587 757 Average 444 | 1 83 10 . 23 234 257 . . . . 2 280 245 161 978 1200 . . . . 497 . . . . 74 111 . 69 426 734 742 Influence Increases 15969 | 20 397 108 . 399 1426 254 . 50 . 90 54 1366 390 189 2213 2752 . 120 295 60 1124 30 50 . . 551 120 . 423 1487 1099 902 Destroy 0b10 Robot/C 7640 | . 240 40 . 280 940 140 . 40 . 80 . 620 160 80 820 1400 . 100 280 40 200 20 40 . . 160 40 . 160 720 460 580 Destroy 0b10 Robot/NC 535 | 20 15 5 . 5 75 10 . 10 . . . 45 10 5 35 100 . . 15 10 15 . . . . 45 5 . 20 40 25 25 Destroy Leader 1396 | . 64 10 . 40 226 30 . . . 10 . 36 . . 198 250 . 20 . 10 52 10 10 . . 68 22 . 36 80 90 134 Allied During Kill 1592 | . . . . 29 . . . . . . . 495 170 85 748 64 . . . . . . . . . . . . . 1 . . Successful Hack 598 | . 15 . . . 71 26 . . . . 24 13 . . 16 136 . . . . 64 . . . . 14 . . 12 71 111 25 Select Force Hacks 80 | . 30 . . . . . . . . . . . . . 50 . . . . . . . . . . . . . . . . . Disable Machine 885 | . . 30 . . 45 45 . . . . . . 15 15 180 255 . . . . 135 . . . . . 15 . . 105 15 30 Anti-Garrison Action 500 | . . . . . . . . . . . . . . . . . . . . . . . . . . 150 . . 150 200 . . Destroy Structure 1828 | . 33 23 . . 69 3 . . . . 15 22 35 4 121 502 . . . . 208 . . . . 84 38 . 45 225 308 93 Advance Influence 450 | . . . . . . . . . . . . . . . . . . . . . 450 . . . . . . . . . . . Partial Spotted 60 | . . . . . . . . . . . 15 30 . . . . . . . . . . . . . 15 . . . . . . Lose Combat Pursuer 405 | . . . . 45 . . . . . . . 105 . . 45 45 . . . . . . . . . 15 . . . 45 90 15 Influence Decreases 15038 | 20 397 108 . 397 623 789 270 50 . 90 40 803 835 160 1053 1660 1259 464 844 321 670 447 87 . . 217 405 49 232 699 894 1155 Entered New Map 5136 | . . . . . 2 439 100 . . . . 8 255 80 105 675 893 220 810 261 . 169 8 . . . 159 49 . 84 392 427 Time Decay 7702 | 20 377 108 . 287 531 350 170 50 . 90 40 495 350 60 458 705 356 214 34 60 270 278 79 . . 217 246 . 222 565 502 568 Search Patrol Dispatched 100 | . . . . . . . . . . . . . . . . . . . . . 100 . . . . . . . . . . . Lost Part 590 | . 20 . . 30 90 . . . . . . 10 10 . 10 200 10 30 . . . . . . . . . . 10 30 . 140 Lost Ally 760 | . . . . 80 . . . . . . . 140 220 20 180 80 . . . . . . . . . . . . . 20 . 20 Purge Threat 750 | . . . . . . . . . . . . 150 . . 300 . . . . . 300 . . . . . . . . . . . Squads Dispatched 102 | . 3 . . 1 9 5 . . . . 1 1 . . 14 26 . . . . 2 . . . . 7 2 . 2 13 8 8 Investigation 21 | . 2 . . . 1 1 . . . . . . . . 2 8 . . . . 1 . . . . 2 . . . 2 2 . Extermination 25 | . . . . . . 1 . . . . 1 . . . 2 5 . . . . 1 . . . . . 2 . . 4 3 6 Reinforcement 36 | . 1 . . . 4 . . . . . . 1 . . 8 6 . . . . . . . . . 5 . . 2 7 . 2 Assault 14 | . . . . 1 1 . . . . . . . . . 2 7 . . . . . . . . . . . . . . 3 . Garrison 6 | . . . . . 3 3 . . . . . . . . . . . . . . . . . . . . . . . . . . Intercept . | . . . . . . . . . . . . . . . . . . . . . . . . . . . . . . . . . Searches Triggered 1 | . . . . . . . . . . . . . . . . . . . . . 1 . . . . . . . . . . . Data Miner Redirects 14 | . . . . . . . . . . . . . . . 2 8 . . . . . . . . . . . . . 1 3 . Construction Impeded 5 | . . . . . . . . . . . . 1 . . 1 1 . . . . . . . . . 2 . . . . . . Haulers Reinforced 8 | . . . . . . . . . . . . . . . 2 1 . . . . . . . . . 2 . . 2 1 . . Active Scanning Responses . | . . . . . . . . . . . . . . . . . . . . . . . . . . . . . . . . . Cargo Convoy Interrupts 1 | . . . . . . . . . . . . . . . . 1 . . . . . . . . . . . . . . . . Stealth | -11 -10 -10 -10 -9 -8 -7 -7 -7 -7 -6 -6 -6 -6 -6 -6 -5 -5 -5 -5 -4 -4 -4 -4 -4 -3 -3 -3 -3 -2 -2 -1 -1 --------- Run | Yrd Mat Min Exi Min Mat Fac Low Low Dat Pro Fac Ext Cet Arc Hub Fac Upp Upp War Pro Fac Upp Upp Zhi Pro Res Arm Lab Res Tes Acc Com Distress Signals 50 | . 3 . . . 2 . . . . . . 2 2 . 5 2 . . . . 1 . . . . 5 . . 3 2 . 23 Communications Jammed 34 | . . . . . . . . . . . . . . . . . . . . . . . . . . . 12 . . 19 3 . Distress Signals 34 | . . . . . . . . . . . . . . . . . . . . . . . . . . . 12 . . 19 3 . Times Spotted 560 | . 21 2 . 21 67 7 . 3 . 4 3 40 10 3 46 96 . 7 23 3 16 1 2 . . 20 7 . 17 50 39 52 Peak Tracking Total 11 | . 4 2 . 6 6 3 . 3 . 4 2 6 5 2 6 7 . 4 9 2 6 1 2 . . 4 2 . 11 5 7 8 Tactical Retreats 21 | . . . . 2 . . . . . . . 4 . . 3 3 . . . . . . . . . 1 . . . 3 4 1 Traps | -11 -10 -10 -10 -9 -8 -7 -7 -7 -7 -6 -6 -6 -6 -6 -6 -5 -5 -5 -5 -4 -4 -4 -4 -4 -3 -3 -3 -3 -2 -2 -1 -1 ------- Run | Yrd Mat Min Exi Min Mat Fac Low Low Dat Pro Fac Ext Cet Arc Hub Fac Upp Upp War Pro Fac Upp Upp Zhi Pro Res Arm Lab Res Tes Acc Com Traps Triggered 15 | . 1 . . . 4 . . . . . . 1 . . 1 2 1 . . . . . . . . 2 . . . 1 2 . Indirectly 1 | . . . . . . . . . . . . . . . 1 . . . . . . . . . . . . . . . . . Trap Hack Attempts . | . . . . . . . . . . . . . . . . . . . . . . . . . . . . . . . . . Triggered . | . . . . . . . . . . . . . . . . . . . . . . . . . . . . . . . . . Disarmed . | . . . . . . . . . . . . . . . . . . . . . . . . . . . . . . . . . Reprogrammed . | . . . . . . . . . . . . . . . . . . . . . . . . . . . . . . . . . Reused . | . . . . . . . . . . . . . . . . . . . . . . . . . . . . . . . . . Traps Extracted . | . . . . . . . . . . . . . . . . . . . . . . . . . . . . . . . . . Installed . | . . . . . . . . . . . . . . . . . . . . . . . . . . . . . . . . . Triggered . | . . . . . . . . . . . . . . . . . . . . . . . . . . . . . . . . . Machines | -11 -10 -10 -10 -9 -8 -7 -7 -7 -7 -6 -6 -6 -6 -6 -6 -5 -5 -5 -5 -4 -4 -4 -4 -4 -3 -3 -3 -3 -2 -2 -1 -1 ---------- Run | Yrd Mat Min Exi Min Mat Fac Low Low Dat Pro Fac Ext Cet Arc Hub Fac Upp Upp War Pro Fac Upp Upp Zhi Pro Res Arm Lab Res Tes Acc Com Machines Disabled 64 | . . 2 . . 3 3 . . . . . 1 1 1 12 17 . . . . 9 . . . . 1 1 . 1 9 1 2 Max in Single Turn 5 | . . 2 . . 1 2 . . . . . . 1 . 1 5 . . . . 5 . . . . 1 1 . 1 1 1 1 Garrison Access 7 | . . . . . 1 . . . . . . . . . 1 . . . . . . . . . . 1 . . 3 1 . . Network Hub 2 | . . . . . . . . . . . . . . . 2 . . . . . . . . . . . . . . . . . Machines Repaired . | . . . . . . . . . . . . . . . . . . . . . . . . . . . . . . . . . Machines Dismantled . | . . . . . . . . . . . . . . . . . . . . . . . . . . . . . . . . . Machines Sabotaged 1 | . . . . . . . . . . . . . . . 1 . . . . . . . . . . . . . . . . . Overloaded Fab Kills . | . . . . . . . . . . . . . . . . . . . . . . . . . . . . . . . . . Hacking | -11 -10 -10 -10 -9 -8 -7 -7 -7 -7 -6 -6 -6 -6 -6 -6 -5 -5 -5 -5 -4 -4 -4 -4 -4 -3 -3 -3 -3 -2 -2 -1 -1 --------- Run | Yrd Mat Min Exi Min Mat Fac Low Low Dat Pro Fac Ext Cet Arc Hub Fac Upp Upp War Pro Fac Upp Upp Zhi Pro Res Arm Lab Res Tes Acc Com Machines Accessed 109 | . 8 1 1 . 15 3 1 . 4 1 2 5 1 . 6 21 . . 1 . 7 1 . 4 . 4 1 . 1 9 7 5 Terminals 58 | . 6 . . . 9 . . . . 1 1 5 1 . 5 9 . . . . 5 . . . . 3 . . . 5 4 4 Fabricators 8 | . . . . . . 2 . . . . . . . . . 3 . . . . 1 . . . . . 1 . . 1 . . Repair Stations 7 | . . . . . 1 . . . . . . . . . . 3 . . . . . . . . . . . . . 1 1 1 Recycling Units 11 | . 2 . . . 2 1 . . . . . . . . . 4 . . . . . . . . . 1 . . . . 1 . Scanalyzers 8 | . . . . . 2 . . . . . 1 . . . . 2 . . . . . . . . . . . . 1 1 1 . Garrison Access 4 | . . . . . 1 . . . . . . . . . 1 . . . . . 1 . . . . . . . . 1 . . Total Hacks 376 | . 21 1 1 . 48 9 1 . 28 2 6 11 2 . 17 81 . . 1 . 36 1 . 17 . 15 2 . 4 35 28 9 Successful 175 | . 11 1 1 . 29 4 1 . 28 2 4 4 . . 8 26 . . 1 . 13 1 . 17 . 3 1 . 1 10 7 2 Failed 196 | . 9 . . . 18 5 . . . . 1 7 2 . 9 55 . . . . 23 . . . . 12 1 . 2 24 21 7 Catastrophic 61 | . . . . . 3 2 . . . . . 1 2 . 2 21 . . . . 7 . . . . 4 1 . . 10 5 3 Database Lockouts 5 | . 1 . . . 1 . . . . . 1 . . . . . . . . . . . . . . . . . 1 1 . . Manual 166 | . 18 . . . 30 3 . . . . . 3 1 . 11 38 . . 1 . 16 . . . . 7 1 . . 21 11 5 Terminals 200 | . 17 . . . 31 . . . . 2 1 11 2 . 16 35 . . . . 32 . . . . 10 . . . 21 16 6 Fabricators 24 | . . . . . . 5 . . . . . . . . . 11 . . . . 2 . . . . . 2 . . 4 . . Repair Stations 14 | . . . . . 2 . . . . . . . . . . 4 . . . . . . . . . . . . . 4 1 3 Recycling Units 40 | . 4 . . . 3 4 . . . . . . . . . 18 . . . . . . . . . 5 . . . . 6 . Scanalyzers 40 | . . . . . 10 . . . . . 5 . . . . 13 . . . . . . . . . . . . 4 3 5 . Garrison Access 8 | . . . . . 2 . . . . . . . . . 1 . . . . . 2 . . . . . . . . 3 . . Terminal Hacks 89 | . 1 1 1 . 7 . 1 . 28 2 1 3 . . 5 2 . . 1 . 8 1 . 17 . 2 . . . 3 3 2 Record 21 | . . . 1 . . . . . 11 2 . . . . . . . . . . . . . 5 . . . . . . 1 1 Part Schematic 12 | . . . . . . . . . 8 . . . . . . . . . . . . . . 4 . . . . . . . . Robot Schematic 6 | . . . . . . . . . 6 . . . . . . . . . . . . . . . . . . . . . . . Robot Analysis 6 | . 1 . . . . . . . . . . . . . . . . . . . 1 . . 4 . . . . . . . . Prototype ID Bank 10 | . . . . . 1 . . . 3 . . . . . . . . . . . . . . 4 . . . . . 1 1 . Open Door 6 | . . 1 . . . . 1 . . . 1 . . . . . . . 1 . . 1 . . . . . . . . . 1 Level Access Points 2 | . . . . . . . . . . . . . . . . 1 . . . . 1 . . . . . . . . . . . Branch Access Points 2 | . . . . . . . . . . . . . . . . 1 . . . . . . . . . 1 . . . . . . Emergency Access Points 2 | . . . . . . . . . . . . . . . 1 . . . . . 1 . . . . . . . . . . . Terminal Index 4 | . . . . . 2 . . . . . . . . . . . . . . . 1 . . . . . . . . . 1 . Garrison Index 1 | . . . . . . . . . . . . . . . 1 . . . . . . . . . . . . . . . . . Alert Level 3 | . . . . . . . . . . . . . . . 1 . . . . . 1 . . . . 1 . . . . . . Unreport Threat 5 | . . . . . . . . . . . . 1 . . 2 . . . . . 2 . . . . . . . . . . . Locate Traps 2 | . . . . . . . . . . . . 1 . . . . . . . . 1 . . . . . . . . . . . Dispatch Records 1 | . . . . . 1 . . . . . . . . . . . . . . . . . . . . . . . . . . . Maintenance Status 1 | . . . . . 1 . . . . . . . . . . . . . . . . . . . . . . . . . . . Security Status 1 | . . . . . 1 . . . . . . . . . . . . . . . . . . . . . . . . . . . Patrol Status 1 | . . . . . 1 . . . . . . . . . . . . . . . . . . . . . . . . . . . Hauler Manifests 2 | . . . . . . . . . . . . 1 . . . . . . . . . . . . . . . . . 1 . . Zone Layout 1 | . . . . . . . . . . . . . . . . . . . . . . . . . . . . . . 1 . . Fabricator Hacks 7 | . . . . . . 1 . . . . . . . . . 3 . . . . 1 . . . . . 1 . . 1 . . Network Status 5 | . . . . . . 1 . . . . . . . . . 1 . . . . 1 . . . . . 1 . . 1 . . Load Schematic 1 | . . . . . . . . . . . . . . . . 1 . . . . . . . . . . . . . . . . Build 1 | . . . . . . . . . . . . . . . . 1 . . . . . . . . . . . . . . . . Repair Station Hacks 2 | . . . . . 2 . . . . . . . . . . . . . . . . . . . . . . . . . . . Scan Component 1 | . . . . . 1 . . . . . . . . . . . . . . . . . . . . . . . . . . . Repair 1 | . . . . . 1 . . . . . . . . . . . . . . . . . . . . . . . . . . . Recycling Unit Hacks 5 | . . . . . 2 1 . . . . . . . . . 2 . . . . . . . . . . . . . . . . Retrieve Components 5 | . . . . . 2 1 . . . . . . . . . 2 . . . . . . . . . . . . . . . . Scanalyzer 18 | . . . . . 7 . . . . . 3 . . . . 5 . . . . . . . . . . . . 1 1 1 . Insert Component 2 | . . . . . 2 . . . . . . . . . . . . . . . . . . . . . . . . . . . Analyze 2 | . . . . . 2 . . . . . . . . . . . . . . . . . . . . . . . . . . . Retrieve Study 14 | . . . . . 3 . . . . . 3 . . . . 5 . . . . . . . . . . . . 1 1 1 . Garrison Access Hacks 2 | . . . . . 1 . . . . . . . . . 1 . . . . . . . . . . . . . . . . . Seal Access 2 | . . . . . 1 . . . . . . . . . 1 . . . . . . . . . . . . . . . . . Unauthorized Hacks 52 | . 10 . . . 10 2 . . . . . 1 . . 2 14 . . . . 4 . . . . 1 . . . 5 3 . Terminals 37 | . 9 . . . 10 . . . . . . 1 . . 2 5 . . . . 3 . . . . 1 . . . 4 2 . Track 3 | . . . . . . . . . . . . . . . . . . . . . 1 . . . . . . . . 2 . . Assimilate 1 | . . . . . . . . . . . . . . . . . . . . . . . . . . . . . . 1 . . Botnet 21 | . 4 . . . 4 . . . . . . 1 . . 1 5 . . . . 2 . . . . 1 . . . 1 2 . Operators 1 | . . . . . 1 . . . . . . . . . . . . . . . . . . . . . . . . . . . Skim 10 | . 5 . . . 5 . . . . . . . . . . . . . . . . . . . . . . . . . . . Sabotage 1 | . . . . . . . . . . . . . . . 1 . . . . . . . . . . . . . . . . . Fabricators 6 | . . . . . . 1 . . . . . . . . . 4 . . . . 1 . . . . . . . . . . . Report 1 | . . . . . . . . . . . . . . . . 1 . . . . . . . . . . . . . . . . Prioritize 1 | . . . . . . . . . . . . . . . . 1 . . . . . . . . . . . . . . . . Liberate 1 | . . . . . . . . . . . . . . . . 1 . . . . . . . . . . . . . . . . Haulers 3 | . . . . . . 1 . . . . . . . . . 1 . . . . 1 . . . . . . . . . . . Repair Stations 4 | . . . . . . . . . . . . . . . . 3 . . . . . . . . . . . . . . 1 . Patch 4 | . . . . . . . . . . . . . . . . 3 . . . . . . . . . . . . . . 1 . Recycling Units 4 | . 1 . . . . 1 . . . . . . . . . 2 . . . . . . . . . . . . . . . . Monitor 1 | . . . . . . . . . . . . . . . . 1 . . . . . . . . . . . . . . . . Recyclers 2 | . . . . . . 1 . . . . . . . . . 1 . . . . . . . . . . . . . . . . Tunnel 1 | . 1 . . . . . . . . . . . . . . . . . . . . . . . . . . . . . . . Scanalyzers . | . . . . . . . . . . . . . . . . . . . . . . . . . . . . . . . . . Garrison Access 1 | . . . . . . . . . . . . . . . . . . . . . . . . . . . . . . 1 . . Jam 1 | . . . . . . . . . . . . . . . . . . . . . . . . . . . . . . 1 . . Data Cores Recovered 4 | . . . . . 1 . . . . . . 1 . . 1 . . . . . . . . . . . . . . . . 1 Used . | . . . . . . . . . . . . . . . . . . . . . . . . . . . . . . . . . Hacking Detections 80 | . 7 . . . 13 3 . . . . 1 5 1 . 5 16 . . . . 6 . . . . 4 1 . . 8 6 4 Full Trace Events 10 | . 1 . . . . 1 . . . . . . . . 1 3 . . . . 1 . . . . 1 . . . 1 1 . Feedback Events 4 | . 1 . . . . 1 . . . . . . . . . 1 . . . . 1 . . . . . . . . . . . Corruption 4 | . 1 . . . . 1 . . . . . . . . . 1 . . . . 1 . . . . . . . . . . . Feedback Blocked . | . . . . . . . . . . . . . . . . . . . . . . . . . . . . . . . . . Robot Schematics Acquired 8 | . . . . . . . . . 6 . . . . . . . . . . . . . . . . . . . . 2 . . Robots Built . | . . . . . . . . . . . . . . . . . . . . . . . . . . . . . . . . . Authchips . | . . . . . . . . . . . . . . . . . . . . . . . . . . . . . . . . . Time . | . . . . . . . . . . . . . . . . . . . . . . . . . . . . . . . . . Total Robot Build Rating . | . . . . . . . . . . . . . . . . . . . . . . . . . . . . . . . . . Part Schematics Acquired 20 | . . . . . 1 . . . 8 . . . . . . . . . . . . . . 4 . . . . . 7 . . Parts Built 1 | . . . . . . . . . . . . . . . . 1 . . . . . . . . . . . . . . . . Authchips . | . . . . . . . . . . . . . . . . . . . . . . . . . . . . . . . . . Time 50 | . . . . . . . . . . . . . . . . 50 . . . . . . . . . . . . . . . . Total Part Build Rating 5 | . . . . . . . . . . . . . . . . 5 . . . . . . . . . . . . . . . . Part Studies Acquired 14 | . . . . . 3 . . . . . 3 . . . . 5 . . . . . . . . . . . . 1 1 1 . Parts Repaired 1 | . . . . . 1 . . . . . . . . . . . . . . . . . . . . . . . . . . . Time 108 | . . . . . 108 . . . . . . . . . . . . . . . . . . . . . . . . . . . Parts Recycled . | . . . . . . . . . . . . . . . . . . . . . . . . . . . . . . . . . Recycled Matter . | . . . . . . . . . . . . . . . . . . . . . . . . . . . . . . . . . Retrieved Matter . | . . . . . . . . . . . . . . . . . . . . . . . . . . . . . . . . . Retrieved Components 29 | . . . . . 19 9 . . . . . . . . . 1 . . . . . . . . . . . . . . . . Parts Scanalyzed 1 | . . . . . 1 . . . . . . . . . . . . . . . . . . . . . . . . . . . Part Schematics Acquired 1 | . . . . . 1 . . . . . . . . . . . . . . . . . . . . . . . . . . . Parts Damaged . | . . . . . . . . . . . . . . . . . . . . . . . . . . . . . . . . . Bothacking | -11 -10 -10 -10 -9 -8 -7 -7 -7 -7 -6 -6 -6 -6 -6 -6 -5 -5 -5 -5 -4 -4 -4 -4 -4 -3 -3 -3 -3 -2 -2 -1 -1 ------------ Run | Yrd Mat Min Exi Min Mat Fac Low Low Dat Pro Fac Ext Cet Arc Hub Fac Upp Upp War Pro Fac Upp Upp Zhi Pro Res Arm Lab Res Tes Acc Com Used RIF Installer . | . . . . . . . . . . . . . . . . . . . . . . . . . . . . . . . . . Robots Hacked 2 | . . . . . . . . . . . . 2 . . . . . . . . . . . . . . . . . . . . Non-combat . | . . . . . . . . . . . . . . . . . . . . . . . . . . . . . . . . . Combat 2 | . . . . . . . . . . . . 2 . . . . . . . . . . . . . . . . . . . . Robot Hacks Applied 3 | . . . . . . . . . . . . 3 . . . . . . . . . . . . . . . . . . . . parse_system 3 | . . . . . . . . . . . . 3 . . . . . . . . . . . . . . . . . . . . Relay Couplers Released 9 | . . . . . . . . . . . . . . . . 3 . . . . . . . . . 3 . . 3 . . . Machine Destruction 6 | . . . . . . . . . . . . . . . . . . . . . . . . . . 3 . . 3 . . . Programmers 3 | . . . . . . . . . . . . . . . . 3 . . . . . . . . . . . . . . . . Fabnet Peak Effective % . | . . . . . . . . . . . . . . . . . . . . . . . . . . . . . . . . . Robots Rewired 30 | . . . . . . . . . . . . 30 . . . . . . . . . . . . . . . . . . . . Allies Hacked 1 | . . . . . . . . . . . . . . . . 1 . . . . . . . . . . . . . . . . Hacks Repelled . | . . . . . . . . . . . . . . . . . . . . . . . . . . . . . . . . . Allies | -11 -10 -10 -10 -9 -8 -7 -7 -7 -7 -6 -6 -6 -6 -6 -6 -5 -5 -5 -5 -4 -4 -4 -4 -4 -3 -3 -3 -3 -2 -2 -1 -1 -------- Run | Yrd Mat Min Exi Min Mat Fac Low Low Dat Pro Fac Ext Cet Arc Hub Fac Upp Upp War Pro Fac Upp Upp Zhi Pro Res Arm Lab Res Tes Acc Com Total Allies 56 | . . 3 . 1 . . . . . . . 40 5 . . 7 . . . . . . . . . . . . . . . . Largest Group 30 | . . 3 3 3 . . . . . . . 30 30 13 12 3 . . . . . . . . . . . . . . . . Highest-Rated Group 1340 | . . 40 40 63 . . . . . . . 1025 1340 682 662 98 . . . . . . . . . . . . . . . . Highest-Rated Ally 159 | . . 16 16 31 . . . . . . . 159 159 96 96 49 . . . . . . . . . . . . . . . . Total Orders 13 | . . . . . . . . . . . . . 9 . 3 1 . . . . . . . . . . . . . . . . STAY 11 | . . . . . . . . . . . . . 8 . 3 . . . . . . . . . . . . . . . . . FOLLOW 1 | . . . . . . . . . . . . . 1 . . . . . . . . . . . . . . . . . . . RETURN 1 | . . . . . . . . . . . . . . . . 1 . . . . . . . . . . . . . . . . Ally Attacks 524 | . . . . 43 . . . . . . . 137 80 24 180 41 . . . . . 5 . . . . . . . 5 . 9 Total Damage 10479 | . . . . 630 . . . . . . . 2641 1760 480 4171 717 . . . . . 17 . . . . . . . 30 . 33 Kills 80 | . . . . 8 . . . . . . . 23 10 4 26 9 . . . . . . . . . . . . . . . . Allies Corrupted . | . . . . . . . . . . . . . . . . . . . . . . . . . . . . . . . . . Allies Melted 2 | . . . . . . . . . . . . . . . . . . . . . . . . . . . . . 2 . . . Intel | -11 -10 -10 -10 -9 -8 -7 -7 -7 -7 -6 -6 -6 -6 -6 -6 -5 -5 -5 -5 -4 -4 -4 -4 -4 -3 -3 -3 -3 -2 -2 -1 -1 ------- Run | Yrd Mat Min Exi Min Mat Fac Low Low Dat Pro Fac Ext Cet Arc Hub Fac Upp Upp War Pro Fac Upp Upp Zhi Pro Res Arm Lab Res Tes Acc Com Active Infowar (turns) 21507 | 43 101 1 . . 226 673 899 504 126 697 379 1449 790 135 1151 3087 818 455 1332 304 510 568 303 183 270 610 518 18 1034 1696 1357 1270 Optics 11496 | . . . . . . . . 422 126 697 379 1449 790 135 1151 3087 818 455 1332 304 351 . . . . . . . . . . . Sensors 13282 | . . 1 . . . . 882 500 125 503 258 . . . . 2015 818 455 1096 297 470 568 303 183 270 610 505 18 832 1315 1224 34 Seismic 3446 | 43 101 . . . 226 673 894 504 123 528 283 71 . . . . . . . . . . . . . . . . . . . . Machine Analysis 4730 | . . . . . . . . . . . . . . . . 2371 818 455 1086 . . . . . . . . . . . . . Cloaking 3228 | . . . . . . . . . . . . . . . . . . . . . . . . . . 1 . . . 1216 1342 669 Jamming 5864 | . . . . . . . . . . . . . . . . . . . . . 316 . . . . . 357 18 1034 1512 1357 1270 ECM 1 | . . . . . . . 1 . . . . . . . . . . . . . . . . . . . . . . . . . Robot Analysis Total 6 | . 1 . . . . . . . . . . . . . . . . . . . 1 . . 4 . . . . . . . . Derelict Logs Recovered 7 | . . 2 . 1 . . . 2 . 1 . . . . . . . . . . . . 1 . . . . . . . . . Drone Launches 26 | . . . . . . . . . . . . . . . . 6 . . . . . 5 . . . . . . . 6 . 9 Drone Recoveries 22 | . . . . . . . . . . . . . . . . 5 . . . . . 5 . . . . . . . 4 . 8 Exploration | -11 -10 -10 -10 -9 -8 -7 -7 -7 -7 -6 -6 -6 -6 -6 -6 -5 -5 -5 -5 -4 -4 -4 -4 -4 -3 -3 -3 -3 -2 -2 -1 -1 ------------- Run | Yrd Mat Min Exi Min Mat Fac Low Low Dat Pro Fac Ext Cet Arc Hub Fac Upp Upp War Pro Fac Upp Upp Zhi Pro Res Arm Lab Res Tes Acc Com Turns Passed 30427 | 125 1153 1115 485 1464 2978 792 932 534 126 697 379 1449 790 135 1151 3087 818 455 1332 304 589 612 314 186 272 907 534 18 1034 1696 1357 2607 Spaces Moved 17132 | 57 599 498 202 573 1088 556 647 358 91 443 267 750 262 64 624 2041 443 245 736 228 372 533 306 163 216 652 300 18 596 986 877 1341 Core 3 | 3 . . . . . . . . . . . . . . . . . . . . . . . . . . . . . . . . Treads 2976 | 54 599 498 202 573 1050 . . . . . . . . . . . . . . . . . . . . . . . . . . . Legs 14153 | . . . . . 38 556 647 358 91 443 267 750 262 64 624 2041 443 245 736 228 372 533 306 163 216 652 300 18 596 986 877 1341 Wheels . | . . . . . . . . . . . . . . . . . . . . . . . . . . . . . . . . . Hover . | . . . . . . . . . . . . . . . . . . . . . . . . . . . . . . . . . Flight . | . . . . . . . . . . . . . . . . . . . . . . . . . . . . . . . . . Fastest Speed 50 | 50 160 160 240 240 160 130 130 130 130 130 124 116 114 114 114 105 178 172 100 100 98 98 98 98 98 98 101 103 102 106 110 112 Average Speed 140 | 154 160 218 240 240 226 130 130 130 130 136 129 120 115 114 114 114 179 173 160 100 111 100 98 98 98 107 103 103 148 110 121 144 Slowest Speed 330 | 160 160 240 240 240 250 130 130 130 130 200 130 124 116 114 115 182 180 330 173 172 173 173 98 98 98 173 172 103 175 171 185 185 Overloaded Moves . | . . . . . . . . . . . . . . . . . . . . . . . . . . . . . . . . . Propulsion Burnouts . | . . . . . . . . . . . . . . . . . . . . . . . . . . . . . . . . . Robots Hopped . | . . . . . . . . . . . . . . . . . . . . . . . . . . . . . . . . . Potential Cave-ins 4 | . . . . . . . . . . . . . . . . 2 . . . . . . . . . . 2 . . . . . Cave-ins Triggered . | . . . . . . . . . . . . . . . . . . . . . . . . . . . . . . . . . Teleports 1 | . . . . . . . . . . . . . . . . . . . . . . . . . . . 1 . . . . . Exploration Rate (%) 55 | 5 97 98 63 93 96 15 72 57 74 67 9 87 71 78 73 70 63 59 88 39 13 78 53 60 42 20 23 6 15 79 21 55 Regions Visited 32 Branch Regions 23 Pre-discovered Areas 12 | . 4 1 1 . 2 . . . 1 . . . . . . . . . . . . . . 3 . . . . . . . . Known Exits Taken 24 | . 1 . . . 1 . . . . 1 1 1 1 1 1 1 1 1 1 1 1 1 1 1 1 1 1 1 1 1 1 . Unknown Exits Taken 8 | 1 . 1 1 1 . 1 1 1 1 . . . . . . . . . . . . . . . . . . . . . . . Scrap Searched 17 | . . 1 . 1 . . 2 2 . 4 . . . . . . . 2 . . . 1 2 . 2 . . . . . . . Spaces Dug 293 | . 7 . . . 11 . 13 . . 26 20 4 8 . 2 37 4 1 9 10 7 20 3 . 6 11 12 . 3 27 39 13 Terrain Destroyed 1298 | . 34 26 . . 63 3 13 . . 26 38 8 29 1 81 282 6 45 79 74 123 34 27 . 6 40 25 . 15 88 99 33 Melee . | . . . . . . . . . . . . . . . . . . . . . . . . . . . . . . . . . Projectile 502 | . 6 . . . . . . . . . . 4 14 1 19 104 6 8 49 2 9 34 4 . 6 19 25 . 15 88 56 33 AOE 796 | . 28 26 . . 63 3 13 . . 26 38 4 15 . 62 178 . 37 30 72 114 . 23 . . 21 . . . . 43 . Terrain Rammed . | . . . . . . . . . . . . . . . . . . . . . . . . . . . . . . . . . Walls Destroyed . | . . . . . . . . . . . . . . . . . . . . . . . . . . . . . . . . . Machines Disabled . | . . . . . . . . . . . . . . . . . . . . . . . . . . . . . . . . . Actions | -11 -10 -10 -10 -9 -8 -7 -7 -7 -7 -6 -6 -6 -6 -6 -6 -5 -5 -5 -5 -4 -4 -4 -4 -4 -3 -3 -3 -3 -2 -2 -1 -1 --------- Run | Yrd Mat Min Exi Min Mat Fac Low Low Dat Pro Fac Ext Cet Arc Hub Fac Upp Upp War Pro Fac Upp Upp Zhi Pro Res Arm Lab Res Tes Acc Com Total 21499 | 75 694 519 204 623 1382 616 723 397 98 518 298 1148 676 117 958 2485 453 263 848 292 509 574 312 188 270 791 492 17 687 1373 1072 1827 Wait 1968 | . 8 1 1 13 41 7 48 20 . 57 4 220 352 44 268 90 . . 25 43 70 5 1 . 47 16 127 . 30 140 76 214 Move 17099 | 56 598 497 201 572 1087 555 646 357 90 442 266 749 261 63 623 2040 442 244 735 227 371 532 305 162 215 651 299 17 595 985 876 1340 Hop . | . . . . . . . . . . . . . . . . . . . . . . . . . . . . . . . . . Pick Up 228 | 4 12 3 . 6 43 13 3 . . 1 4 6 5 2 2 34 1 2 12 2 5 2 . 3 . 7 6 . 6 12 5 27 Fast Attach 181 | 7 1 3 . . 17 4 3 2 3 . 1 6 4 . 1 15 1 4 14 2 5 2 . 10 2 15 7 . 5 18 6 23 Attach 91 | . 2 . . 5 14 3 . 1 . . 3 1 1 . 1 21 . 1 5 1 2 . . . . 3 . . 4 7 4 12 Detach 49 | . 1 1 2 . 8 1 1 2 . . 2 . 1 . . 1 . 3 7 3 2 . . . . 1 . . 2 6 . 5 Swap 418 | . 18 3 . 2 20 11 12 4 2 12 8 27 5 1 9 57 1 1 7 5 22 12 2 2 2 26 13 . 10 53 36 35 Drop 347 | . 3 6 . 3 45 15 5 . 3 1 6 16 10 2 2 34 . . 23 2 11 5 . 11 2 30 19 . 9 29 10 45 Fire 1043 | 8 46 1 . 18 87 7 5 10 . 5 3 116 37 5 45 183 8 8 20 6 21 16 4 . 2 36 21 . 26 120 56 123 Melee . | . . . . . . . . . . . . . . . . . . . . . . . . . . . . . . . . . Ram . | . . . . . . . . . . . . . . . . . . . . . . . . . . . . . . . . . Kick 32 | . . . . . 1 . . . . . 1 . . . 7 9 . . . . . . . . . 6 . . . 3 3 2 Crush 32 | . 5 4 . 4 19 . . . . . . . . . . . . . . . . . . . . . . . . . . . Escape Stasis 1 | . . . . . . . . . . . . 1 . . . . . . . . . . . . . . . . . . . . Rewire 10 | . . . . . . . . 1 . . . 6 . . . 1 . . . 1 . . . . . . . . . . . 1 Trap . | . . . . . . . . . . . . . . . . . . . . . . . . . . . . . . . . . Miscellaneous . | . . . . . . . . . . . . . . . . . . . . . . . . . . . . . . . . . Route ------- -11/Scrapyard -10/Materials (discovered 6 exits: *Mat x3 / *Min x2 / *Sub) -10/Mines (discovered 3 exits: *Mat x2 / *Exi) -10/Exiles -9/Mines (discovered 2 exits: *Mat x2) -8/Materials (discovered 3 exits: *Fac x3) -7/Factory (discovered 4 exits: Fac x2 / Sto / *Low) -7/Lower Caves -7/Lower Caves -7/Data Miner -6/Proximity Caves -6/Factory (discovered 3 exits: Low / *Ext x2) -6/Extension (discovered 2 exits: *Fac / *Cet) -6/Cetus (discovered 2 exits: *Fac / *Arc) -6/Archives (discovered 2 exits: *Fac / *Hub) -6/Hub_04(d) (discovered 3 exits: *Fac x3) -5/Factory (discovered 6 exits: *Fac x4 / *Upp x2) -5/Upper Caves -5/Upper Caves (discovered 2 exits: *Fac / *War) -5/Warlord -4/Proximity Caves -4/Factory (discovered 5 exits: *Res x4 / *Upp) -4/Upper Caves -4/Upper Caves -4/Zhirov -3/Proximity Caves -3/Research (discovered 4 exits: *Res / *Arm / Qua x2) -3/Armory -3/Lab -2/Research -2/Testing -1/Access -1/Command (discovered 2 exits: [*Sur x2]) 0b11 Command History --------- Turn | Location | Event 2 | -11/Scrapyard | Met Revision 17 14 | -11/Scrapyard | Discovered new exit (range 16) 126 | -11/Scrapyard | Entered Materials 266 | -10/Materials | Discovered new exit (range 15) 313 | -10/Materials | Build established: Mutant 582 | -10/Materials | Discovered new exit (range 5) 704 | -10/Materials | Discovered new exit (range 16) 719 | -10/Materials | Central database locked down 761 | -10/Materials | Learned 4 Recycling zone layouts 794 | -10/Materials | Identified exit to Subcaves 794 | -10/Materials | Identified exit to Mines 794 | -10/Materials | Identified exit to Materials 816 | -10/Materials | Learned location of Mines (-9) 831 | -10/Materials | Learned location of 2 exits from Materials 834 | -10/Materials | Learned location of Recycling (-7) 845 | -10/Materials | Learned 4 Subcaves zone layouts 1279 | -10/Materials | Entered Mines 1290 | -10/Mines | Found the Drone Emporium 1298 | -10/Mines | Found Prototype Device 1298 | -10/Mines | Identified Splice Drone Bay 1359 | -10/Mines | A weapon hastily lodged in a ceiling crevice suddenly fell to the ground 1468 | -10/Mines | Learned Materials garrison access intel 1582 | -10/Mines | Discovered exit to Materials (range 11) 1886 | -10/Mines | Assisted by bots powering up and referring to "LRC-V3" 1943 | -10/Mines | Found a damaged Exp. Sensor Array with a note attached 1949 | -10/Mines | Found Prototype Device 1949 | -10/Mines | Identified Exp. Sensor Array 2050 | -10/Mines | Discovered exit to Materials (range 8) 2256 | -10/Mines | Deemed a non-threat by the Exiles lab entrance 2381 | -10/Mines | Discovered new exit (range 5) 2394 | -10/Mines | Entered Exiles 2394 | -10/Exiles | Accompanied by 3 allies 2455 | -10/Exiles | Met 8R-AWN 2494 | -10/Exiles | Met EX-HEX 2583 | -10/Exiles | Met EX-DEC 2623 | -10/Exiles | Learned location of Zion (-6) 2674 | -10/Exiles | Met EX-BIN 2856 | -10/Exiles | Discovered new exit (range 10) 2879 | -10/Exiles | Entered Mines 2879 | -9/Mines | Accompanied by 3 allies 2885 | -9/Mines | Met a Derelict bent on vengeance 3564 | -9/Mines | Met a Derelict testing a Signal Generator 3732 | -9/Mines | Lost 3 allies 3734 | -9/Mines | Assembled infested the area 3839 | -9/Mines | Learned Materials stockpile data 3866 | -9/Mines | Discovered new exit (range 9) 3978 | -9/Mines | Build established: Scavenger-Mutant 4209 | -9/Mines | Discovered new exit (range 13) 4343 | -9/Mines | Entered Materials 4343 | -8/Materials | Evolved 4 slots: Propulsion x1, Utility x2, Weapon x1 4344 | -8/Materials | Identified exit to Factory 4346 | -8/Materials | Loaded intel: 1 garrison access location 4390 | -8/Materials | Central database locked down 4620 | -8/Materials | Garrison activated, responded to threat 4651 | -8/Materials | Build established: Scavenger-Tank 4987 | -8/Materials | Repaired Exp. Sensor Array? 5603 | -8/Materials | Build established: Tank 6211 | -8/Materials | Discovered exit to Factory (range 14) 6361 | -8/Materials | Build established: Gunner 6541 | -8/Materials | Destroyed 8 combat bots 6634 | -8/Materials | Learned 2 Lower Caves zone layouts 6779 | -8/Materials | Learned location of 2 exits from Factory 6881 | -8/Materials | Learned Storage emergency access door positions 7016 | -8/Materials | Learned location of Storage (-7) 7143 | -8/Materials | First assault squad dispatched 7260 | -8/Materials | Lost 5 parts (3n1u1w) 7321 | -8/Materials | Entered Factory 7321 | -7/Factory | Evolved 2 slots: Propulsion x2 7322 | -7/Factory | Identified exit to Storage 7323 | -7/Factory | Identified exit to Factory 7469 | -7/Factory | Discovered new exit (range 5) 7623 | -7/Factory | Garrison activated, responded to threat 8113 | -7/Factory | Entered Lower Caves 8364 | -7/Lower Caves | Encountered a Warlord checkpoint 8843 | -7/Lower Caves | Discovered new exit (range 8) 9045 | -7/Lower Caves | Entered another Lower Caves area 9143 | -7/Lower Caves | Learned Factory garrison access intel 9433 | -7/Lower Caves | Learned Factory emergency access door positions 9444 | -7/Lower Caves | Build established: Skirmisher 9486 | -7/Lower Caves | Discovered new exit (range 14) 9579 | -7/Lower Caves | Entered Data Miner 9579 | -7/Data Miner | Discovered new exit (range 6) 9600 | -7/Data Miner | Met Data Miner 9637 | -7/Data Miner | Learned location of Section 7 (-2) 9637 | -7/Data Miner | Acquired the access code to Warlord's prototype stash 9654 | -7/Data Miner | Received God Mode back door access code from Data Miner 9705 | -7/Data Miner | Entered Proximity Caves 10294 | -6/Proximity Caves | Discovered exit to Factory (range 9) 10402 | -6/Proximity Caves | Entered Factory 10402 | -6/Factory | Evolved 2 slots: Utility x2 10403 | -6/Factory | Identified exit to Lower Caves 10403 | -6/Factory | Identified exit to Extension 10405 | -6/Factory | Loaded intel: 4 garrison access locations 10552 | -6/Factory | Spotted B-75 Beast 10750 | -6/Factory | Central database locked down 10781 | -6/Factory | Entered Extension 11182 | -6/Extension | Spotted B-75 Beast 11187 | -6/Extension | Build established: Commander-Tank 11246 | -6/Extension | Lost 4 allies 11354 | -6/Extension | Rescued a captive Derelict 11366 | -6/Extension | Rescued a captive Derelict 11598 | -6/Extension | Destroyed B-75 Beast 11607 | -6/Extension | Spotted B-75 Beast 11616 | -6/Extension | Allies destroyed B-75 Beast 11657 | -6/Extension | Rescued a captive Derelict 11818 | -6/Extension | Rescued a captive Derelict 11819 | -6/Extension | Rescued a captive Derelict 11835 | -6/Extension | Rescued a captive Derelict 11836 | -6/Extension | Rescued a captive Derelict 11849 | -6/Extension | Rescued A7 11910 | -6/Extension | Rescued a captive Derelict 11922 | -6/Extension | Rescued a captive Derelict 11924 | -6/Extension | Rescued a captive Derelict 11966 | -6/Extension | Discovered new exit (range 10) 11967 | -6/Extension | Discovered new exit (range 6) 11989 | -6/Extension | Identified exit to Cetus 12000 | -6/Extension | Identified exit to Factory 12008 | -6/Extension | Found Launcher Loader 12230 | -6/Extension | Entered Cetus 12230 | -6/Cetus | Accompanied by 30 allies (A7) 12235 | -6/Cetus | Acquired a Cetus Manufacturing Module code from A7 12239 | -6/Cetus | Spotted Cetus Guard 12240 | -6/Cetus | Spotted Cetus Guard 12240 | -6/Cetus | Spotted Cetus Guard 12243 | -6/Cetus | Spotted Cetus Guard 12258 | -6/Cetus | Allies destroyed Cetus Guard 12260 | -6/Cetus | Allies destroyed Cetus Guard 12262 | -6/Cetus | Allies destroyed Cetus Guard 12264 | -6/Cetus | Allies destroyed Cetus Guard 12277 | -6/Cetus | Build established: Commander-Gunner 12290 | -6/Cetus | Lost 5 allies 12347 | -6/Cetus | Started Cetus Manufacturing Module 12358 | -6/Cetus | Escorted A7 to Cetus Mainframe 12372 | -6/Cetus | Manufactured an Enhanced Grunt 12397 | -6/Cetus | Manufactured an Enhanced Grunt 12422 | -6/Cetus | Manufactured an Enhanced Grunt 12447 | -6/Cetus | Manufactured an Enhanced Grunt 12472 | -6/Cetus | Manufactured an Enhanced Grunt 12505 | -6/Cetus | Discovered new exit (range 20) 12656 | -6/Cetus | Spotted Cetus Guard 12656 | -6/Cetus | Spotted Cetus Guard 12656 | -6/Cetus | Spotted Cetus Guard 12659 | -6/Cetus | Spotted Cetus Guard 12670 | -6/Cetus | Allies destroyed Cetus Guard 12671 | -6/Cetus | Allies destroyed Cetus Guard 12682 | -6/Cetus | Destroyed Cetus Guard 12683 | -6/Cetus | Allies destroyed Cetus Guard 12690 | -6/Cetus | Found Prototype Device 12691 | -6/Cetus | Identified Exp. Thermal Shield 12703 | -6/Cetus | Discovered exit to Factory (range 20) 12704 | -6/Cetus | Lost 8 allies 12718 | -6/Cetus | Met Revision 17 12769 | -6/Cetus | Identified exit to Archives 12971 | -6/Cetus | Murdered A7 12980 | -6/Cetus | Security sweep announced 12986 | -6/Cetus | Lost 3 allies 12997 | -6/Cetus | Murdered 5 allies 13020 | -6/Cetus | Entered Archives 13020 | -6/Archives | Accompanied by 13 allies 13069 | -6/Archives | Discovered exit to Factory (range 14) 13090 | -6/Archives | Discovered new exit (range 14) 13106 | -6/Archives | Identified exit to Hub_04(d) 13155 | -6/Archives | Entered Hub_04(d) 13155 | -6/Hub_04(d) | Accompanied by 12 allies 13166 | -6/Hub_04(d) | Discovered exit to Factory (range 7) 13394 | -6/Hub_04(d) | Discovered exit to Factory (range 9) 13491 | -6/Hub_04(d) | Lost 3 allies 13590 | -6/Hub_04(d) | Discovered exit to Factory (range 15) 13762 | -6/Hub_04(d) | Build established: Scavenger-Gunner 13855 | -6/Hub_04(d) | First assault squad dispatched 13872 | -6/Hub_04(d) | Incoming assault squad redirected 13969 | -6/Hub_04(d) | Destroyed 8 combat bots 14045 | -6/Hub_04(d) | Network Hub disabled 14066 | -6/Hub_04(d) | Incoming investigation squad redirected 14100 | -6/Hub_04(d) | Network Hub disabled 14306 | -6/Hub_04(d) | Entered Factory 14306 | -5/Factory | Evolved 2 slots: Power x1, Utility x1 14628 | -5/Factory | Fabricated Cld. Plasma Cannon (x1) 14630 | -5/Factory | Build established: Scavenger-Skirmisher 14819 | -5/Factory | Discovered new exit (range 12) 14846 | -5/Factory | Identified exit to Factory 15206 | -5/Factory | First assault squad dispatched 15228 | -5/Factory | Incoming assault squad redirected 15318 | -5/Factory | Build established: Scavenger-Gunner 15364 | -5/Factory | Lost 3 parts (1p1n1u) 15498 | -5/Factory | Cargo convoy interrupted 15648 | -5/Factory | Found Corrupted Prototype Launcher 15687 | -5/Factory | Build established: Skirmisher 15831 | -5/Factory | Incoming assault squad redirected 15852 | -5/Factory | Incoming investigation squad redirected 16121 | -5/Factory | Incoming assault squad redirected 16134 | -5/Factory | Incoming investigation squad redirected 16329 | -5/Factory | Build established: Scavenger-Skirmisher 16698 | -5/Factory | Identified Tactical Quantum Warhead 16720 | -5/Factory | Core integrity fell below 50% 16723 | -5/Factory | Incoming assault squad redirected 16724 | -5/Factory | System corruption reached 10% 16747 | -5/Factory | Lost 5 parts (1p1n3w) 16750 | -5/Factory | Destroyed 7 combat bots 16817 | -5/Factory | Incoming investigation squad redirected 16850 | -5/Factory | Incoming investigation squad redirected 17049 | -5/Factory | Build established: Skirmisher 17212 | -5/Factory | Lost 3 parts (2n1w) 17238 | -5/Factory | Identified exit to Upper Caves 17385 | -5/Factory | Core integrity fell below 20% 17393 | -5/Factory | Entered Upper Caves 18133 | -5/Upper Caves | Discovered new exit (range 7) 18142 | -5/Upper Caves | Identified exit to Upper Caves 18167 | -5/Upper Caves | Encountered a Warlord checkpoint 18211 | -5/Upper Caves | Entered another Upper Caves area 18230 | -5/Upper Caves | System corruption reached 30% 18260 | -5/Upper Caves | Discovered exit to Factory (range 18) 18489 | -5/Upper Caves | Encountered a Warlord checkpoint 18507 | -5/Upper Caves | Build established: Scavenger-Skirmisher 18626 | -5/Upper Caves | Discovered new exit (range 6) 18664 | -5/Upper Caves | Identified exit to Warlord 18666 | -5/Upper Caves | Entered Warlord 18724 | -5/Warlord | System corruption cleaned by Quarantine Array 18871 | -5/Warlord | Found Prototype Special Weapon 18871 | -5/Warlord | Identified RU-N14's Throwing Claymores v3 18875 | -5/Warlord | Found RU-N14's Throwing Claymores v3 18878 | -5/Warlord | Found RU-N14's Throwing Claymores v3 18881 | -5/Warlord | Found RU-N14's Throwing Claymores v3 18884 | -5/Warlord | Found RU-N14's Throwing Claymores v3 18892 | -5/Warlord | Found RU-N14's Throwing Claymores v3 18947 | -5/Warlord | Build established: Skirmisher 19032 | -5/Warlord | System corruption cleaned by Quarantine Array 19516 | -5/Warlord | Warlord's base attacked by MAIN.C 19584 | -5/Warlord | Found Prototype Energy Cannon 19584 | -5/Warlord | Identified Vortex Driver 19588 | -5/Warlord | Found Prototype Energy Gun 19588 | -5/Warlord | Identified Vortex Rail 19592 | -5/Warlord | Found Vortex Rail 19603 | -5/Warlord | Found Vortex Driver 19610 | -5/Warlord | Found Vortex Rail 19729 | -5/Warlord | Met Warlord 19744 | -5/Warlord | Opened Warlord's prototype stash 19749 | -5/Warlord | Found Prototype Reactor 19749 | -5/Warlord | Identified Vortex Chain Reactor 19770 | -5/Warlord | Found Prototype Processor 19770 | -5/Warlord | Identified Exp. Core Analyzer 19866 | -5/Warlord | Warlord forces counterattacked 19945 | -5/Warlord | Spotted Executioner 19945 | -5/Warlord | Spotted Striker 19955 | -5/Warlord | Destroyed Executioner 19972 | -5/Warlord | Discovered new exit (range 20) 19979 | -5/Warlord | Destroyed 10 combat bots 19989 | -5/Warlord | Identified exit to Proximity Caves 19998 | -5/Warlord | Entered Proximity Caves 20039 | -4/Proximity Caves | Encountered a Derelict guarding a broken Freighter 20138 | -4/Proximity Caves | Spotter reported a threat 20189 | -4/Proximity Caves | Spotter reported a threat 20260 | -4/Proximity Caves | Discovered exit to Factory (range 9) 20268 | -4/Proximity Caves | Spotter reported a threat 20302 | -4/Proximity Caves | Entered Factory 20302 | -4/Factory | Evolved 2 slots: Power x1, Propulsion x1 20479 | -4/Factory | Found Quantum Capacitor 20484 | -4/Factory | Identified exit to Research 20552 | -4/Factory | Search patrols dispatched 20680 | -4/Factory | Discovered new exit (range 7) 20889 | -4/Factory | Identified exit to Upper Caves 20891 | -4/Factory | Entered Upper Caves 21024 | -4/Upper Caves | Spotted B-86 Titan 21062 | -4/Upper Caves | Destroyed B-86 Titan 21453 | -4/Upper Caves | Discovered new exit (range 13) 21466 | -4/Upper Caves | Identified exit to Upper Caves 21503 | -4/Upper Caves | Entered another Upper Caves area 21555 | -4/Upper Caves | Encountered a Warlord checkpoint 21813 | -4/Upper Caves | Discovered new exit (range 3) 21815 | -4/Upper Caves | Identified exit to Zhirov 21817 | -4/Upper Caves | Entered Zhirov 21817 | -4/Zhirov | Discovered new exit (range 3) 21819 | -4/Zhirov | Identified exit to Proximity Caves 21837 | -4/Zhirov | Met Zhirov 21858 | -4/Zhirov | Learned location of Quarantine (-3) 21858 | -4/Zhirov | Learned location of Testing (-2) 21858 | -4/Zhirov | Learned location of Command (-1) 21864 | -4/Zhirov | Zhirov requested help retrieving the SGEMP Prototype 21879 | -4/Zhirov | Found Alien Artifact 21879 | -4/Zhirov | Identified Integrated Dissipator 21879 | -4/Zhirov | Installed Integrated Dissipator, increased core heat dissipation (+20) 21956 | -4/Zhirov | Found Alien Artifact 22003 | -4/Zhirov | Entered Proximity Caves 22263 | -3/Proximity Caves | Discovered exit to Research (range 12) 22275 | -3/Proximity Caves | Entered Research 22275 | -3/Research | Evolved 2 slots: Utility x2 22276 | -3/Research | Identified exit to Armory 22447 | -3/Research | Discovered new exit (range 6) 22454 | -3/Research | Identified exit to Research 22475 | -3/Research | Revision forces began assault on 0b10 22547 | -3/Research | Met up with Revision 17++ 22593 | -3/Research | Spotted B-86 Titan 22598 | -3/Research | Build established: Gunner 22635 | -3/Research | Found Prototype Device 22635 | -3/Research | Identified Exp. Thermal Defense Suite 22736 | -3/Research | Identified exit to Quarantine 22975 | -3/Research | Research terminal network offline 23009 | -3/Research | Lost 5 allies 23112 | -3/Research | Spotted Executioner 23117 | -3/Research | Destroyed Executioner 23182 | -3/Research | Entered Armory 23640 | -3/Armory | Build established: Tank 23706 | -3/Armory | Identified Transdimensional Reconstructor 23706 | -3/Armory | Warped through subspace to slip node 23706 | -3/Armory | Discovered new exit (range 1) 23706 | -3/Armory | Identified exit to Lab 23716 | -3/Armory | Entered Lab 23716 | -3/Lab | Discovered exit to Research (range 9) 23730 | -3/Lab | Unable to decrypt terminal 23734 | -3/Lab | Entered Research 23734 | -2/Research | Warlord forces began assault on 0b10 23734 | -2/Research | Evolved 2 slots: Utility x2 23785 | -2/Research | Central database locked down 23844 | -2/Research | Research machine network offline 24084 | -2/Research | Lost 3 allies 24153 | -2/Research | Borebot progress halted 24208 | -2/Research | Met up with Warlord 24212 | -2/Research | Discovered new exit (range 11) 24229 | -2/Research | Borebot progress halted 24229 | -2/Research | Identified exit to Testing 24310 | -2/Research | Borebot progress halted 24317 | -2/Research | Spotted Striker 24319 | -2/Research | Destroyed Striker 24355 | -2/Research | Met DD-05H 24434 | -2/Research | Spotted Striker 24435 | -2/Research | Spotted Striker 24437 | -2/Research | Spotted Striker 24486 | -2/Research | Destroyed Striker 24501 | -2/Research | Lost 10 allies 24734 | -2/Research | Warlord invited to help at Command 24734 | -2/Research | Given Cave Seal Controls access code 24768 | -2/Research | Entered Testing 24818 | -2/Testing | Central database locked down 25094 | -2/Testing | System corruption reached 10% 25187 | -2/Testing | Found Prototype Energy Gun 25187 | -2/Testing | Identified Tachyon Dispersion Ray 25228 | -2/Testing | Found Prototype Energy Cannon 25228 | -2/Testing | Identified Null Cannon 25309 | -2/Testing | Found Prototype Energy Cannon 25309 | -2/Testing | Identified Disintegrator 25388 | -2/Testing | Build established: Infiltrator-Tank 25520 | -2/Testing | Incoming investigation squad redirected 25556 | -2/Testing | Found Prototype Processor 25556 | -2/Testing | Identified Exp. Targeting Computer 25709 | -2/Testing | Found Prototype Device 25709 | -2/Testing | Identified Exp. Focal Shield 25782 | -2/Testing | Scanned by Researcher 25841 | -2/Testing | Found Prototype Device 25858 | -2/Testing | Build established: Scavenger-Gunner 25945 | -2/Testing | Identified Exp. Hardlight Generator 26014 | -2/Testing | Discovered new exit (range 19) 26072 | -2/Testing | Identified exit to Access 26086 | -2/Testing | Found Prototype Energy Gun 26086 | -2/Testing | Identified Hyp. EM Gauss Rifle 26464 | -2/Testing | Entered Access 26464 | -1/Access | Evolved 2 slots: Utility x1, Weapon x1 26856 | -1/Access | Incoming investigation squad redirected 26964 | -1/Access | First assault squad dispatched 26992 | -1/Access | Incoming assault squad redirected 27487 | -1/Access | Incoming assault squad redirected 27517 | -1/Access | Spotted B-99 Colossus 27749 | -1/Access | Discovered new exit (range 7) 27756 | -1/Access | Identified exit to Command 27821 | -1/Access | Entered Command 28218 | -1/Command | Spotted B-99 Colossus 28277 | -1/Command | Disengaged cave seal 28277 | -1/Command | Derelicts emerged from the dark tunnel 28277 | -1/Command | Welcomed Warlord to Command 28300 | -1/Command | Destroyed B-99 Colossus 28323 | -1/Command | Lost 3 allies 28566 | -1/Command | P-80 Master assimilated allied HY-CQC(M) 29088 | -1/Command | Disengaged cave seal 29088 | -1/Command | Derelicts emerged from the dark tunnel 29196 | -1/Command | Warlord commented on Warlord statues 29205 | -1/Command | Spotted M Guard 29206 | -1/Command | Spotted Combat Programmer 29207 | -1/Command | Spotted Combat Programmer 29208 | -1/Command | Combat Programmer assimilated allied 8S-3VS(d) 29209 | -1/Command | Spotted M Guard 29215 | -1/Command | Destroyed Combat Programmer 29230 | -1/Command | Destroyed Combat Programmer 29241 | -1/Command | Attached CPS modules to M Guard. 29243 | -1/Command | Attached CPS modules to M Guard. 29260 | -1/Command | All MAIN.C guards destroyed 29270 | -1/Command | Found Prototype Protection 29270 | -1/Command | Identified Hvy. Regenerative Plating 29285 | -1/Command | Lost 13 allies 29289 | -1/Command | Lost 5 parts (5u) 29295 | -1/Command | Found Prototype Device 29295 | -1/Command | Identified AEGIS Remote Shield 29300 | -1/Command | Found AEGIS Remote Shield 29305 | -1/Command | Found Prototype Reactor 29305 | -1/Command | Identified Zero-point Reactor 29317 | -1/Command | Found Prototype Device 29317 | -1/Command | Identified Thermal Barrier 29396 | -1/Command | P-80 Master assimilated allied 8Z-RY3(s) 29484 | -1/Command | Met MAIN.C 29486 | -1/Command | Warlord shut down involuntarily 29509 | -1/Command | 0b10 Conduit disabled 29530 | -1/Command | MAIN.C activated Command garrisons 29536 | -1/Command | Lost 3 allies 29596 | -1/Command | Destroyed MAIN.C 29613 | -1/Command | Discovered new exit (range 37) 29613 | -1/Command | Discovered new exit (range 93) 29613 | -1/Command | Extracted map data and part IDs from MAIN.C's data core 29622 | -1/Command | Lost 5 parts (1p3u1w) 29740 | -1/Command | System corruption reached 10% 29811 | -1/Command | Spotted N6-C3D(B) 29819 | -1/Command | Destroyed N6-C3D(B) 29971 | -1/Command | Spotted B-99 Colossus 29992 | -1/Command | Destroyed B-99 Colossus 30082 | -1/Command | Found Vortex Chain Reactor 30084 | -1/Command | Found Vortex Chain Reactor 30089 | -1/Command | Found Exp. Weapon Cycler 30098 | -1/Command | Found Exp. System Purifier 30101 | -1/Command | Found Exp. Core Analyzer 30125 | -1/Command | Found Adv. Kinecellerator 30130 | -1/Command | Found Exp. Transmission Jammer 30140 | -1/Command | Found Exp. Target Analyzer 30360 | -1/Command | Build established: Gunner 30428 | *** | Establishing 0b11! Last Messages --------------- corruption (6%). 30187_ Dropped Centrium Leg+. 30194_ Exp. System Purifier purges 1% system corruption (5%). 30210_ Exp. System Purifier purges 1% system corruption (4%). 30215_ System corrupted: Substantial component data lost. 30220_ Exp. System Purifier purges 1% system corruption (3%). 30221_ Exp. System Purifier purges 1% system corruption (2%). 30260_ Exp. System Purifier purges 1% system corruption (1%). 30264_ Exp. System Purifier purges 1% system corruption (0%). 30338_ Wave Inhibitor disabled. 30385_ Acquired 156 matter. 30395_ Acquired 92 matter. [Achievement: Commander 0b11] Map ----- +----------------------------------------------------+ | # #????????# #????????# #??# # #?? | | # #????????# #????????# #??# # ! #?? | | ## #????#####+####?????#######+######### # #?? | | ?# #????# #?????# """ # #?? | | ?# #????# #?????# = ""T"" + #?? | | ##+#????# / #######+### "" "" # #?? | | ^###### "" # # = # #?? | | + + """" + ] # # #?? | | # #### """" # # ######### | | " # #??# "" # # "" | | " # #??# # # """" | | # #??# # "" "" # """" #####+##### | | # ########+#### ""T"" # "" ## ### | | / #??# """ # ## % #]] | | # #??##+######## ## [ #] | | #### ##### ##=%* #!! | | ### #! | | # ###################+############### #?#/ ### | | # #?# """"""""""" #?????????????# #?# #?? | | + #?# """"T"""" #?????????????# #?# #?? | | # #?# #?????????????# #?# !! #?? | | # #?# #??????????#### #?# !! #?# | | # #?# ############ ### !! #?# | | # #?# ## ^^ "## = #?# | | # #?# ## ^^ "## = = #?# | | # #?##########+######### @ ####""" #####+####?# | | # #??????# ## #??###"# ##???#=#????# | | # #??????# ############# #????# #????# | | #+###????# # + #????# #????# | | #????# # # #????# #????# | | ###### # # #????# #????# | | + + """" # # %#??###+####?# | | ###### """" + # #??# #?# | | !! #????# ] """" # # #??# #?# | | !! #????# =%!"""" # # #??# #?# | | ! #????# [ + # #??# #?# | | ! #????# ############# #??# ! #?# | | #????# #???#?????###!%#### #?# | | +##+########"######+#######"##### "######+#### | | * ^^ ![%=! ! %! | | ####"""######%"### *[= *%[ = | | ###"""######"=!### =[= === !!%![ % | | "" "" # ## =*[## =%[ "####### %!= ############ | | """ + ## !![%#"=! *% #########"[### #?# | | """ + ## ==%%"! + %%!! # #?# | | """ + ## =%[%=######### !! # #?# | | """"""# ## *=[=%#???????# !=! # #?# | | ####### ## =%%=*#???????# [%[ # "" #?# | | # ## **%!######### *=] # """" #?? | | # ##"##=[!"# """###"##+"##### """" #?? | +----------------------------------------------------+ Best States ------------- Heat Dissipation 148 Coolant Potential 120 Energy Generation 93 Energy Capacity 2040 Matter Stores 427 Matter Capacity 800 Sight Range 23 Robot Scan Range 20 Terrain Scan Density 10 Jamming Range 16 Cloak Strength 4 Power Amplification 30 Base Temperature (-) 200 EM Shielding 4 Armor Coverage 825 Resistance: TH 50 Weapon Shielding 33 Point Defense Rating 160 Weapon Cycling 30 Phase Shifting 15 Evasion (%) 70 Targeting Accuracy 12 Target Analysis 10 Core Analysis 12 Recoil Reduction 3 Particle Charging 30 Kinecelleration 50 Item Schematics ----------------- Enh. Nuclear Core | -8/Materials | Scanalyzed Combat Drone Bay | -7/Data Miner | Free Lgt. Regenerative Plating | -7/Data Miner | Free Biomechanical Wings | -7/Data Miner | Free Gravity Neutralizer | -7/Data Miner | Free Cld. Plasma Cannon | -7/Data Miner | Free Nuclear Pulse Array | -7/Data Miner | Free Adv. Recoil Stabilizer | -7/Data Miner | Free Smartbomb Launcher | -7/Data Miner | Free Assault Drone Bay | -4/Zhirov | Free Exp. Heat Sink | -4/Zhirov | Free Exp. Optical Array | -4/Zhirov | Free Imp. Arc Thrower | -4/Zhirov | Free Cld. Field Propulsion Drive | -2/Testing | Archive Exp. EM Shield | -2/Testing | Archive Exp. ECM Suite | -2/Testing | Archive Plasma Sword | -2/Testing | Archive Electron Diverter | -2/Testing | Archive Enh. Biometal Leg | -2/Testing | Archive Prc. Phase Gun | -2/Testing | Archive Robot Schematics ------------------ S-27 Virus | -7/Data Miner | Free G-50 Soldier | -7/Data Miner | Free Y-54 Guardian | -7/Data Miner | Free A-15 Conveyor | -7/Data Miner | Free R-10 Processor | -7/Data Miner | Free L-41 Fighter | -7/Data Miner | Free A-02 Transporter | -2/Testing | Archive A-27 Freighter | -2/Testing | Archive Fabricated ------------ Cld. Plasma Cannon | x1 | -5/Factory Repaired ---------- Exp. Sensor Array | 62% | -8/Materials Studied --------- Lgt. Treads | -8/Materials | Hacked Hvy. Assault Rifle | -8/Materials | Hacked Rocket Launcher | -8/Materials | Hacked Gatling Laser | -6/Factory | Hacked Arm. Leg | -6/Factory | Hacked Imp. Titanium Leg | -6/Factory | Hacked Wave Gun | -5/Factory | Hacked Imp. Proton Missile Launcher | -5/Factory | Hacked Flexi-carbon Leg | -5/Factory | Hacked Thunder Leg | -5/Factory | Hacked Lrn. Proton Cannon | -5/Factory | Hacked Centrium Leg | -2/Research | Hacked Hvy. Shield Leg | -2/Testing | Hacked Quantum Reactor | -1/Access | Hacked Alien Tech Used ----------------- Integrated Dissipator Transdimensional Reconstructor Achievements -------------- Commander 0b11 Off Switch Challenges ------------ None Game ------ Seed ChainAnalysisStripper Manual? 0 Play Time 05:03:55 Cumulative 364.7 hours Start 2025.10.12 @ 20:13:22 End 2025.10.13 @ 02:14:11 Sessions 1 Manual Loads 0 Difficulty Rogue Special Mode None Game No. 192 Rogue 192 Adventurer 0 Explorer 0 Win Type 1 Total 15 Types 9/1/4/0/0/0/0/1/0/0 Lore% 87 Gallery% 80 Achievement% 71 Wizard Run 0 Options --------- Layout 2 ASCII 0 Keyboard 1 Movement Vi Keybinds 0 Fullscreen 1 Font 28/Cog Map View 50x52 Zoom Use 0% Tactical HUD 1 Map Filters NONE Filters NONE Steam 1 RUN: b5323784-bba8-4ff6-b7bd-f52ee131ba7f